Workbook

Sheet GNST
A1: Gram negative store staver (GNST)
A2: 2019-10-01 | D2: PA Jenum
A3: Registrér etter at måleverdiene er lagt inn
A5: Ukentlig | D5: E.coli ATCC 25922 | AY5: =E6 -> AMP 10 | BA5: =I6 -> SXT 25 | BC5: =M6 -> CN 10 | BE5: =Q6 -> MEL 10 | BG5: =U6 -> TZP 36 | BI5: =Y6 -> CTX 5 | BK5: =AC6 -> CAZ 10 | BM5: =AG6 -> CIP 5 | BO5: =AK6 -> MEM 10 | BQ5: ETP10
A6: Dato | B6: Nr | D6: Ampicillin 10 | E6: AMP 10 | F6: Sonegrenser | G6: Target | H6: Trim-sulfa | I6: SXT 25 | J6: Sonegrenser | K6: Target | L6: Gentamicin 10 | M6: CN 10 | N6: Sonegrenser | O6: Target | P6: Mecillinam 10 | Q6: MEL 10 | R6: Sonegrenser | S6: Target | T6: Piperacillin Tazobactam | U6: TZP 36 | V6: Sonegrenser | W6: Target | X6: Cefotaxim 5 | Y6: CTX 5 | Z6: Sonegrenser | AA6: Target | AB6: Ceftazidime 10 | AC6: CAZ 10 | AD6: Sonegrenser | AE6: Target | AF6: Ciprofloxacin 5 | AG6: CIP 5 | AH6: Sonegrenser | AI6: Target | AJ6: Meropenem 10 | AK6: MEM 10 | AL6: Sonegrenser | AM6: Target | AN6: Ertapenem 10 | AO6: ETP 10 | AP6: Sonegrenser | AQ6: Target | AY6: Øvre | AZ6: Nedre | BA6: Øvre | BB6: Nedre | BC6: Øvre | BD6: Nedre | BE6: Øvre | BF6: Nedre | BG6: Øvre | BH6: Nedre | BI6: Øvre | BJ6: Nedre | BK6: Øvre | BL6: Nedre | BM6: Øvre | BN6: Nedre | BO6: Øvre | BP6: Nedre | BQ6: Øvre | BR6: Nedre
A7: Snitt | B7: Siste 30 | D7: =AVERAGE(D$15:D$44) -> 16.25 | E7: +-2SD | F7: =IF(F8="","",IF(D7>(3+((F8+F9)/2)),"NB",IF(D7<(-3+((F8+F9)/2)),"NB","OK"))) -> OK | G7: 18.5 | H7: =AVERAGE(H$15:H$44) -> 26.5 | J7: =IF(J8="","",IF(H7>(3+((J8+J9)/2)),"NB",IF(H7<(-3+((J8+J9)/2)),"NB","OK"))) -> OK | K7: 26 | L7: =AVERAGE(L$15:L$44) -> 19.5 | M7: +-2SD | N7: =IF(N8="","",IF(L7>(3+((N8+N9)/2)),"NB",IF(L7<(-3+((N8+N9)/2)),"NB","OK"))) -> OK | O7: 22.5 | P7: =AVERAGE(P$15:P$44) -> 26.25 | Q7: +-2SD | R7: =IF(R8="","",IF(P7>(3+((R8+R9)/2)),"NB",IF(P7<(-3+((R8+R9)/2)),"NB","OK"))) -> OK | S7: 27 | T7: =AVERAGE(T$15:T$44) -> 23 | U7: +-2SD | V7: =IF(V8="","",IF(T7>(3+((V8+V9)/2)),"NB",IF(T7<(-3+((V8+V9)/2)),"NB","OK"))) -> OK | W7: 24 | X7: =AVERAGE(X$15:X$44) -> 26 | Y7: +-2SD | Z7: =IF(Z8="","",IF(X7>(3+((Z8+Z9)/2)),"NB",IF(X7<(-3+((Z8+Z9)/2)),"NB","OK"))) -> OK | AA7: 28 | AB7: =AVERAGE(AB$15:AB$44) -> 24.75 | AC7: +-2SD | AD7: =IF(AD8="","",IF(AB7>(3+((AD8+AD9)/2)),"NB",IF(AB7<(-3+((AD8+AD9)/2)),"NB","OK"))) -> OK | AE7: 26 | AF7: =AVERAGE(AF$15:AF$44) -> 32 | AG7: +-2SD | AH7: =IF(AH8="","",IF(AF7>(3+((AH8+AH9)/2)),"NB",IF(AF7<(-3+((AH8+AH9)/2)),"NB","OK"))) -> OK | AI7: 33 | AJ7: =AVERAGE(AJ$15:AJ$44) -> 30.5 | AK7: +-2SD | AL7: =IF(AL8="","",IF(AJ7>(3+((AL8+AL9)/2)),"NB",IF(AJ7<(-3+((AL8+AL9)/2)),"NB","OK"))) -> OK | AM7: 31.5 | AN7: =AVERAGE(AN$15:AN$44) -> 32.5 | AO7: +-2SD | AP7: =IF(AP8="","",IF(AN7>(3+((AP8+AP9)/2)),"NB",IF(AN7<(-3+((AP8+AP9)/2)),"NB","OK"))) -> OK | AQ7: 32.5
A8: SD | B8: Siste 30 | D8: =STDEV(D$15:D$44) -> 0.9574271078 | E8: =D7+(2*D8) -> 18.16485422 | F8: 22 | H8: =STDEV(H$15:H$44) -> 0.5773502692 | I8: =H7+(2*H8) -> 27.65470054 | J8: 29 | L8: =STDEV(L$15:L$44) -> 0.5773502692 | M8: =L7+(2*L8) -> 20.65470054 | N8: 26 | P8: =STDEV(P$15:P$44) -> 0.5 | Q8: =P7+(2*P8) -> 27.25 | R8: 30 | T8: =STDEV(T$15:T$44) -> 0 | U8: =T7+(2*T8) -> 23 | V8: 27 | X8: =STDEV(X$15:X$44) -> 0 | Y8: =X7+(2*X8) -> 26 | Z8: 31 | AB8: =STDEV(AB$15:AB$44) -> 0.5 | AC8: =AB7+(2*AB8) -> 25.75 | AD8: 29 | AF8: =STDEV(AF$15:AF$44) -> 0.8164965809 | AG8: =AF7+(2*AF8) -> 33.63299316 | AH8: 37 | AJ8: =STDEV(AJ$15:AJ$44) -> 1.290994449 | AK8: =AJ7+(2*AJ8) -> 33.0819889 | AL8: 35 | AN8: =STDEV(AN$15:AN$44) -> 1 | AO8: =AN7+(2*AN8) -> 34.5 | AP8: 36
A9: CV% | D9: =D8/D7 -> 0.05891859125 | E9: =D7-(2*D8) -> 14.33514578 | F9: 15 | H9: =H8/H7 -> 0.02178680261 | I9: =H7-(2*H8) -> 25.34529946 | J9: 23 | L9: =L8/L7 -> 0.02960770611 | M9: =L7-(2*L8) -> 18.34529946 | N9: 19 | P9: =P8/P7 -> 0.01904761905 | Q9: =P7-(2*P8) -> 25.25 | R9: 24 | T9: =T8/T7 -> 0 | U9: =T7-(2*T8) -> 23 | V9: 21 | X9: =X8/X7 -> 0 | Y9: =X7-(2*X8) -> 26 | Z9: 25 | AB9: =AB8/AB7 -> 0.0202020202 | AC9: =AB7-(2*AB8) -> 23.75 | AD9: 23 | AF9: =AF8/AF7 -> 0.02551551815 | AG9: =AF7-(2*AF8) -> 30.36700684 | AH9: 29 | AJ9: =AJ8/AJ7 -> 0.04232768684 | AK9: =AJ7-(2*AJ8) -> 27.9180111 | AL9: 28 | AN9: =AN8/AN7 -> 0.03076923077 | AO9: =AN7-(2*AN8) -> 30.5 | AP9: 29
A12: Legg inn diameter i hele millimeter i fargede felt i Rad 13
C14: Initialer, Avvik, Komm. | E14: Avvik | F14: s30 | G14: RT | I14: Avvik | J14: s30 | K14: RT | M14: Avvik | N14: s30 | O14: RT | Q14: Avvik | R14: s30 | S14: RT | U14: Avvik | V14: s30 | W14: RT | Y14: Avvik | Z14: s30 | AA14: RT | AC14: Avvik | AD14: s30 | AE14: RT | AG14: Avvik | AH14: s30 | AI14: RT | AK14: Avvik | AL14: s30 | AM14: RT | AP14: s30 | AQ14: RT
A15: 2019-09-25 | B15: 1 | D15: 15 | E15: =(D15-$D$7)/$D$7 -> -0.07692307692 | F15: =IF((ABS(E15)>($D$9*3)),"AV",IF((ABS(E15)>($D$9*2)),"NB","")) ->  | H15: 27 | I15: =(H15-$H$7)/$H$7 -> 0.01886792453 | J15: =IF((ABS(I15)>($H$9*3)),"AV",IF((ABS(I15)>($H$9*2)),"NB","")) ->  | L15: 20 | M15: =(L15-$L$7)/$L$7 -> 0.02564102564 | N15: =IF((ABS(M15)>($L$9*3)),"AV",IF((ABS(M15)>($L$9*2)),"NB","")) ->  | P15: 27 | Q15: =(P15-$P$7)/$P$7 -> 0.02857142857 | R15: =IF((ABS(Q15)>($P$9*3)),"AV",IF((ABS(Q15)>($P$9*2)),"NB","")) ->  | T15: 23 | U15: =(T15-$T$7)/$T$7 -> 0 | V15: =IF((ABS(U15)>($T$9*3)),"AV",IF((ABS(U15)>($T$9*2)),"NB","")) ->  | X15: 26 | Y15: =(X15-$X$7)/$X$7 -> 0 | Z15: =IF((ABS(Y15)>($X$9*3)),"AV",IF((ABS(Y15)>($X$9*2)),"NB","")) ->  | AB15: 25 | AC15: =(AB15-$AB$7)/$AB$7 -> 0.0101010101 | AD15: =IF((ABS(AC15)>($AB$9*3)),"AV",IF((ABS(AC15)>($AB$9*2)),"NB","")) ->  | AF15: 31 | AG15: =(AF15-$AF$7)/$AF$7 -> -0.03125 | AH15: =IF((ABS(AG15)>($AF$9*3)),"AV",IF((ABS(AG15)>($AF$9*2)),"NB","")) ->  | AJ15: 31 | AK15: =(AJ15-$AJ$7)/$AJ$7 -> 0.01639344262 | AL15: =IF((ABS(AK15)>($AJ$9*3)),"AV",IF((ABS(AK15)>($AJ$9*2)),"NB","")) ->  | AN15: 32 | AO15: =(AN15-$AN$7)/$AN$7 -> -0.01538461538 | AP15: =IF((ABS(AO15)>($AN$9*3)),"AV",IF((ABS(AO15)>($AN$9*2)),"NB","")) ->  | AY15: =F$8 -> 22 | AZ15: =F$9 -> 15 | BA15: =J$8 -> 29 | BB15: =J$9 -> 23 | BC15: =N$8 -> 26 | BD15: =N$9 -> 19 | BE15: =R$8 -> 30 | BF15: =R$9 -> 24 | BG15: =V$8 -> 27 | BH15: =V$9 -> 21 | BI15: =Z$8 -> 31 | BJ15: =Z$9 -> 25 | BK15: =AD$8 -> 29 | BL15: =AD$9 -> 23 | BM15: =AH$8 -> 37 | BN15: =AH$9 -> 29 | BO15: =AL$8 -> 35 | BP15: =AL$9 -> 28 | BQ15: 36 | BR15: 29
A16: 2019-09-18 | B16: =B15+1 -> 2 | D16: 16 | E16: =(D16-$D$7)/$D$7 -> -0.01538461538 | F16: =IF((ABS(E16)>($D$9*3)),"AV",IF((ABS(E16)>($D$9*2)),"NB","")) ->  | H16: 26 | I16: =(H16-$H$7)/$H$7 -> -0.01886792453 | J16: =IF((ABS(I16)>($H$9*3)),"AV",IF((ABS(I16)>($H$9*2)),"NB","")) ->  | L16: 19 | M16: =(L16-$L$7)/$L$7 -> -0.02564102564 | N16: =IF((ABS(M16)>($L$9*3)),"AV",IF((ABS(M16)>($L$9*2)),"NB","")) ->  | P16: 26 | Q16: =(P16-$P$7)/$P$7 -> -0.009523809524 | R16: =IF((ABS(Q16)>($P$9*3)),"AV",IF((ABS(Q16)>($P$9*2)),"NB","")) ->  | T16: 23 | U16: =(T16-$T$7)/$T$7 -> 0 | V16: =IF((ABS(U16)>($T$9*3)),"AV",IF((ABS(U16)>($T$9*2)),"NB","")) ->  | X16: 26 | Y16: =(X16-$X$7)/$X$7 -> 0 | Z16: =IF((ABS(Y16)>($X$9*3)),"AV",IF((ABS(Y16)>($X$9*2)),"NB","")) ->  | AB16: 24 | AC16: =(AB16-$AB$7)/$AB$7 -> -0.0303030303 | AD16: =IF((ABS(AC16)>($AB$9*3)),"AV",IF((ABS(AC16)>($AB$9*2)),"NB","")) ->  | AF16: 32 | AG16: =(AF16-$AF$7)/$AF$7 -> 0 | AH16: =IF((ABS(AG16)>($AF$9*3)),"AV",IF((ABS(AG16)>($AF$9*2)),"NB","")) ->  | AJ16: 29 | AK16: =(AJ16-$AJ$7)/$AJ$7 -> -0.04918032787 | AL16: =IF((ABS(AK16)>($AJ$9*3)),"AV",IF((ABS(AK16)>($AJ$9*2)),"NB","")) ->  | AN16: 32 | AO16: =(AN16-$AN$7)/$AN$7 -> -0.01538461538 | AP16: =IF((ABS(AO16)>($AN$9*3)),"AV",IF((ABS(AO16)>($AN$9*2)),"NB","")) ->  | AY16: =F$8 -> 22 | AZ16: =F$9 -> 15 | BA16: =J$8 -> 29 | BB16: =J$9 -> 23 | BC16: =N$8 -> 26 | BD16: =N$9 -> 19 | BE16: =R$8 -> 30 | BF16: =R$9 -> 24 | BG16: =V$8 -> 27 | BH16: =V$9 -> 21 | BI16: =Z$8 -> 31 | BJ16: =Z$9 -> 25 | BK16: =AD$8 -> 29 | BL16: =AD$9 -> 23 | BM16: =AH$8 -> 37 | BN16: =AH$9 -> 29 | BO16: =AL$8 -> 35 | BP16: =AL$9 -> 28 | BQ16: 36 | BR16: 29
A17: 2019-09-11 | B17: 3 | D17: 17 | E17: =(D17-$D$7)/$D$7 -> 0.04615384615 | F17: =IF((ABS(E17)>($D$9*3)),"AV",IF((ABS(E17)>($D$9*2)),"NB","")) ->  | H17: 26 | I17: =(H17-$H$7)/$H$7 -> -0.01886792453 | J17: =IF((ABS(I17)>($H$9*3)),"AV",IF((ABS(I17)>($H$9*2)),"NB","")) ->  | L17: 19 | M17: =(L17-$L$7)/$L$7 -> -0.02564102564 | N17: =IF((ABS(M17)>($L$9*3)),"AV",IF((ABS(M17)>($L$9*2)),"NB","")) ->  | P17: 26 | Q17: =(P17-$P$7)/$P$7 -> -0.009523809524 | R17: =IF((ABS(Q17)>($P$9*3)),"AV",IF((ABS(Q17)>($P$9*2)),"NB","")) ->  | T17: 23 | U17: =(T17-$T$7)/$T$7 -> 0 | V17: =IF((ABS(U17)>($T$9*3)),"AV",IF((ABS(U17)>($T$9*2)),"NB","")) ->  | X17: 26 | Y17: =(X17-$X$7)/$X$7 -> 0 | Z17: =IF((ABS(Y17)>($X$9*3)),"AV",IF((ABS(Y17)>($X$9*2)),"NB","")) ->  | AB17: 25 | AC17: =(AB17-$AB$7)/$AB$7 -> 0.0101010101 | AD17: =IF((ABS(AC17)>($AB$9*3)),"AV",IF((ABS(AC17)>($AB$9*2)),"NB","")) ->  | AF17: 32 | AG17: =(AF17-$AF$7)/$AF$7 -> 0 | AH17: =IF((ABS(AG17)>($AF$9*3)),"AV",IF((ABS(AG17)>($AF$9*2)),"NB","")) ->  | AJ17: 30 | AK17: =(AJ17-$AJ$7)/$AJ$7 -> -0.01639344262 | AL17: =IF((ABS(AK17)>($AJ$9*3)),"AV",IF((ABS(AK17)>($AJ$9*2)),"NB","")) ->  | AN17: 32 | AO17: =(AN17-$AN$7)/$AN$7 -> -0.01538461538 | AP17: =IF((ABS(AO17)>($AN$9*3)),"AV",IF((ABS(AO17)>($AN$9*2)),"NB","")) ->  | AY17: =F$8 -> 22 | AZ17: =F$9 -> 15 | BA17: =J$8 -> 29 | BB17: =J$9 -> 23 | BC17: =N$8 -> 26 | BD17: =N$9 -> 19 | BE17: =R$8 -> 30 | BF17: =R$9 -> 24 | BG17: =V$8 -> 27 | BH17: =V$9 -> 21 | BI17: =Z$8 -> 31 | BJ17: =Z$9 -> 25 | BK17: =AD$8 -> 29 | BL17: =AD$9 -> 23 | BM17: =AH$8 -> 37 | BN17: =AH$9 -> 29 | BO17: =AL$8 -> 35 | BP17: =AL$9 -> 28 | BQ17: 36 | BR17: 29
A18: 2019-09-04 | B18: 4 | D18: 17 | E18: =(D18-$D$7)/$D$7 -> 0.04615384615 | F18: =IF((ABS(E18)>($D$9*3)),"AV",IF((ABS(E18)>($D$9*2)),"NB","")) ->  | H18: 27 | I18: =(H18-$H$7)/$H$7 -> 0.01886792453 | J18: =IF((ABS(I18)>($H$9*3)),"AV",IF((ABS(I18)>($H$9*2)),"NB","")) ->  | L18: 20 | M18: =(L18-$L$7)/$L$7 -> 0.02564102564 | N18: =IF((ABS(M18)>($L$9*3)),"AV",IF((ABS(M18)>($L$9*2)),"NB","")) ->  | P18: 26 | Q18: =(P18-$P$7)/$P$7 -> -0.009523809524 | R18: =IF((ABS(Q18)>($P$9*3)),"AV",IF((ABS(Q18)>($P$9*2)),"NB","")) ->  | T18: 23 | U18: =(T18-$T$7)/$T$7 -> 0 | V18: =IF((ABS(U18)>($T$9*3)),"AV",IF((ABS(U18)>($T$9*2)),"NB","")) ->  | X18: 26 | Y18: =(X18-$X$7)/$X$7 -> 0 | Z18: =IF((ABS(Y18)>($X$9*3)),"AV",IF((ABS(Y18)>($X$9*2)),"NB","")) ->  | AB18: 25 | AC18: =(AB18-$AB$7)/$AB$7 -> 0.0101010101 | AD18: =IF((ABS(AC18)>($AB$9*3)),"AV",IF((ABS(AC18)>($AB$9*2)),"NB","")) ->  | AF18: 33 | AG18: =(AF18-$AF$7)/$AF$7 -> 0.03125 | AH18: =IF((ABS(AG18)>($AF$9*3)),"AV",IF((ABS(AG18)>($AF$9*2)),"NB","")) ->  | AJ18: 32 | AK18: =(AJ18-$AJ$7)/$AJ$7 -> 0.04918032787 | AL18: =IF((ABS(AK18)>($AJ$9*3)),"AV",IF((ABS(AK18)>($AJ$9*2)),"NB","")) ->  | AN18: 34 | AO18: =(AN18-$AN$7)/$AN$7 -> 0.04615384615 | AP18: =IF((ABS(AO18)>($AN$9*3)),"AV",IF((ABS(AO18)>($AN$9*2)),"NB","")) ->  | AY18: =F$8 -> 22 | AZ18: =F$9 -> 15 | BA18: =J$8 -> 29 | BB18: =J$9 -> 23 | BC18: =N$8 -> 26 | BD18: =N$9 -> 19 | BE18: =R$8 -> 30 | BF18: =R$9 -> 24 | BG18: =V$8 -> 27 | BH18: =V$9 -> 21 | BI18: =Z$8 -> 31 | BJ18: =Z$9 -> 25 | BK18: =AD$8 -> 29 | BL18: =AD$9 -> 23 | BM18: =AH$8 -> 37 | BN18: =AH$9 -> 29 | BO18: =AL$8 -> 35 | BP18: =AL$9 -> 28 | BQ18: 36 | BR18: 29
AY19: =F$8 -> 22 | AZ19: =F$9 -> 15 | BA19: =J$8 -> 29 | BB19: =J$9 -> 23 | BC19: =N$8 -> 26 | BD19: =N$9 -> 19 | BE19: =R$8 -> 30 | BF19: =R$9 -> 24 | BG19: =V$8 -> 27 | BH19: =V$9 -> 21 | BI19: =Z$8 -> 31 | BJ19: =Z$9 -> 25 | BK19: =AD$8 -> 29 | BL19: =AD$9 -> 23 | BM19: =AH$8 -> 37 | BN19: =AH$9 -> 29 | BO19: =AL$8 -> 35 | BP19: =AL$9 -> 28 | BQ19: 36 | BR19: 29
AY20: =F$8 -> 22 | AZ20: =F$9 -> 15 | BA20: =J$8 -> 29 | BB20: =J$9 -> 23 | BC20: =N$8 -> 26 | BD20: =N$9 -> 19 | BE20: =R$8 -> 30 | BF20: =R$9 -> 24 | BG20: =V$8 -> 27 | BH20: =V$9 -> 21 | BI20: =Z$8 -> 31 | BJ20: =Z$9 -> 25 | BK20: =AD$8 -> 29 | BL20: =AD$9 -> 23 | BM20: =AH$8 -> 37 | BN20: =AH$9 -> 29 | BO20: =AL$8 -> 35 | BP20: =AL$9 -> 28 | BQ20: 36 | BR20: 29
AY21: =F$8 -> 22 | AZ21: =F$9 -> 15 | BA21: =J$8 -> 29 | BB21: =J$9 -> 23 | BC21: =N$8 -> 26 | BD21: =N$9 -> 19 | BE21: =R$8 -> 30 | BF21: =R$9 -> 24 | BG21: =V$8 -> 27 | BH21: =V$9 -> 21 | BI21: =Z$8 -> 31 | BJ21: =Z$9 -> 25 | BK21: =AD$8 -> 29 | BL21: =AD$9 -> 23 | BM21: =AH$8 -> 37 | BN21: =AH$9 -> 29 | BO21: =AL$8 -> 35 | BP21: =AL$9 -> 28 | BQ21: 36 | BR21: 29
AY22: =F$8 -> 22 | AZ22: =F$9 -> 15 | BA22: =J$8 -> 29 | BB22: =J$9 -> 23 | BC22: =N$8 -> 26 | BD22: =N$9 -> 19 | BE22: =R$8 -> 30 | BF22: =R$9 -> 24 | BG22: =V$8 -> 27 | BH22: =V$9 -> 21 | BI22: =Z$8 -> 31 | BJ22: =Z$9 -> 25 | BK22: =AD$8 -> 29 | BL22: =AD$9 -> 23 | BM22: =AH$8 -> 37 | BN22: =AH$9 -> 29 | BO22: =AL$8 -> 35 | BP22: =AL$9 -> 28 | BQ22: 36 | BR22: 29
AY23: =F$8 -> 22 | AZ23: =F$9 -> 15 | BA23: =J$8 -> 29 | BB23: =J$9 -> 23 | BC23: =N$8 -> 26 | BD23: =N$9 -> 19 | BE23: =R$8 -> 30 | BF23: =R$9 -> 24 | BG23: =V$8 -> 27 | BH23: =V$9 -> 21 | BI23: =Z$8 -> 31 | BJ23: =Z$9 -> 25 | BK23: =AD$8 -> 29 | BL23: =AD$9 -> 23 | BM23: =AH$8 -> 37 | BN23: =AH$9 -> 29 | BO23: =AL$8 -> 35 | BP23: =AL$9 -> 28 | BQ23: 36 | BR23: 29
AY24: =F$8 -> 22 | AZ24: =F$9 -> 15 | BA24: =J$8 -> 29 | BB24: =J$9 -> 23 | BC24: =N$8 -> 26 | BD24: =N$9 -> 19 | BE24: =R$8 -> 30 | BF24: =R$9 -> 24 | BG24: =V$8 -> 27 | BH24: =V$9 -> 21 | BI24: =Z$8 -> 31 | BJ24: =Z$9 -> 25 | BK24: =AD$8 -> 29 | BL24: =AD$9 -> 23 | BM24: =AH$8 -> 37 | BN24: =AH$9 -> 29 | BO24: =AL$8 -> 35 | BP24: =AL$9 -> 28 | BQ24: 36 | BR24: 29
AY25: =F$8 -> 22 | AZ25: =F$9 -> 15 | BA25: =J$8 -> 29 | BB25: =J$9 -> 23 | BC25: =N$8 -> 26 | BD25: =N$9 -> 19 | BE25: =R$8 -> 30 | BF25: =R$9 -> 24 | BG25: =V$8 -> 27 | BH25: =V$9 -> 21 | BI25: =Z$8 -> 31 | BJ25: =Z$9 -> 25 | BK25: =AD$8 -> 29 | BL25: =AD$9 -> 23 | BM25: =AH$8 -> 37 | BN25: =AH$9 -> 29 | BO25: =AL$8 -> 35 | BP25: =AL$9 -> 28 | BQ25: 36 | BR25: 29
AY26: =F$8 -> 22 | AZ26: =F$9 -> 15 | BA26: =J$8 -> 29 | BB26: =J$9 -> 23 | BC26: =N$8 -> 26 | BD26: =N$9 -> 19 | BE26: =R$8 -> 30 | BF26: =R$9 -> 24 | BG26: =V$8 -> 27 | BH26: =V$9 -> 21 | BI26: =Z$8 -> 31 | BJ26: =Z$9 -> 25 | BK26: =AD$8 -> 29 | BL26: =AD$9 -> 23 | BM26: =AH$8 -> 37 | BN26: =AH$9 -> 29 | BO26: =AL$8 -> 35 | BP26: =AL$9 -> 28 | BQ26: 36 | BR26: 29
AY27: =F$8 -> 22 | AZ27: =F$9 -> 15 | BA27: =J$8 -> 29 | BB27: =J$9 -> 23 | BC27: =N$8 -> 26 | BD27: =N$9 -> 19 | BE27: =R$8 -> 30 | BF27: =R$9 -> 24 | BG27: =V$8 -> 27 | BH27: =V$9 -> 21 | BI27: =Z$8 -> 31 | BJ27: =Z$9 -> 25 | BK27: =AD$8 -> 29 | BL27: =AD$9 -> 23 | BM27: =AH$8 -> 37 | BN27: =AH$9 -> 29 | BO27: =AL$8 -> 35 | BP27: =AL$9 -> 28 | BQ27: 36 | BR27: 29
AY28: =F$8 -> 22 | AZ28: =F$9 -> 15 | BA28: =J$8 -> 29 | BB28: =J$9 -> 23 | BC28: =N$8 -> 26 | BD28: =N$9 -> 19 | BE28: =R$8 -> 30 | BF28: =R$9 -> 24 | BG28: =V$8 -> 27 | BH28: =V$9 -> 21 | BI28: =Z$8 -> 31 | BJ28: =Z$9 -> 25 | BK28: =AD$8 -> 29 | BL28: =AD$9 -> 23 | BM28: =AH$8 -> 37 | BN28: =AH$9 -> 29 | BO28: =AL$8 -> 35 | BP28: =AL$9 -> 28 | BQ28: 36 | BR28: 29
AY29: =F$8 -> 22 | AZ29: =F$9 -> 15 | BA29: =J$8 -> 29 | BB29: =J$9 -> 23 | BC29: =N$8 -> 26 | BD29: =N$9 -> 19 | BE29: =R$8 -> 30 | BF29: =R$9 -> 24 | BG29: =V$8 -> 27 | BH29: =V$9 -> 21 | BI29: =Z$8 -> 31 | BJ29: =Z$9 -> 25 | BK29: =AD$8 -> 29 | BL29: =AD$9 -> 23 | BM29: =AH$8 -> 37 | BN29: =AH$9 -> 29 | BO29: =AL$8 -> 35 | BP29: =AL$9 -> 28 | BQ29: 36 | BR29: 29
AY30: =F$8 -> 22 | AZ30: =F$9 -> 15 | BA30: =J$8 -> 29 | BB30: =J$9 -> 23 | BC30: =N$8 -> 26 | BD30: =N$9 -> 19 | BE30: =R$8 -> 30 | BF30: =R$9 -> 24 | BG30: =V$8 -> 27 | BH30: =V$9 -> 21 | BI30: =Z$8 -> 31 | BJ30: =Z$9 -> 25 | BK30: =AD$8 -> 29 | BL30: =AD$9 -> 23 | BM30: =AH$8 -> 37 | BN30: =AH$9 -> 29 | BO30: =AL$8 -> 35 | BP30: =AL$9 -> 28 | BQ30: 36 | BR30: 29
AY31: =F$8 -> 22 | AZ31: =F$9 -> 15 | BA31: =J$8 -> 29 | BB31: =J$9 -> 23 | BC31: =N$8 -> 26 | BD31: =N$9 -> 19 | BE31: =R$8 -> 30 | BF31: =R$9 -> 24 | BG31: =V$8 -> 27 | BH31: =V$9 -> 21 | BI31: =Z$8 -> 31 | BJ31: =Z$9 -> 25 | BK31: =AD$8 -> 29 | BL31: =AD$9 -> 23 | BM31: =AH$8 -> 37 | BN31: =AH$9 -> 29 | BO31: =AL$8 -> 35 | BP31: =AL$9 -> 28 | BQ31: 36 | BR31: 29
AY32: =F$8 -> 22 | AZ32: =F$9 -> 15 | BA32: =J$8 -> 29 | BB32: =J$9 -> 23 | BC32: =N$8 -> 26 | BD32: =N$9 -> 19 | BE32: =R$8 -> 30 | BF32: =R$9 -> 24 | BG32: =V$8 -> 27 | BH32: =V$9 -> 21 | BI32: =Z$8 -> 31 | BJ32: =Z$9 -> 25 | BK32: =AD$8 -> 29 | BL32: =AD$9 -> 23 | BM32: =AH$8 -> 37 | BN32: =AH$9 -> 29 | BO32: =AL$8 -> 35 | BP32: =AL$9 -> 28 | BQ32: 36 | BR32: 29
AY33: =F$8 -> 22 | AZ33: =F$9 -> 15 | BA33: =J$8 -> 29 | BB33: =J$9 -> 23 | BC33: =N$8 -> 26 | BD33: =N$9 -> 19 | BE33: =R$8 -> 30 | BF33: =R$9 -> 24 | BG33: =V$8 -> 27 | BH33: =V$9 -> 21 | BI33: =Z$8 -> 31 | BJ33: =Z$9 -> 25 | BK33: =AD$8 -> 29 | BL33: =AD$9 -> 23 | BM33: =AH$8 -> 37 | BN33: =AH$9 -> 29 | BO33: =AL$8 -> 35 | BP33: =AL$9 -> 28 | BQ33: 36 | BR33: 29
AY34: =F$8 -> 22 | AZ34: =F$9 -> 15 | BA34: =J$8 -> 29 | BB34: =J$9 -> 23 | BC34: =N$8 -> 26 | BD34: =N$9 -> 19 | BE34: =R$8 -> 30 | BF34: =R$9 -> 24 | BG34: =V$8 -> 27 | BH34: =V$9 -> 21 | BI34: =Z$8 -> 31 | BJ34: =Z$9 -> 25 | BK34: =AD$8 -> 29 | BL34: =AD$9 -> 23 | BM34: =AH$8 -> 37 | BN34: =AH$9 -> 29 | BO34: =AL$8 -> 35 | BP34: =AL$9 -> 28 | BQ34: 36 | BR34: 29
AY35: =F$8 -> 22 | AZ35: =F$9 -> 15 | BA35: =J$8 -> 29 | BB35: =J$9 -> 23 | BC35: =N$8 -> 26 | BD35: =N$9 -> 19 | BE35: =R$8 -> 30 | BF35: =R$9 -> 24 | BG35: =V$8 -> 27 | BH35: =V$9 -> 21 | BI35: =Z$8 -> 31 | BJ35: =Z$9 -> 25 | BK35: =AD$8 -> 29 | BL35: =AD$9 -> 23 | BM35: =AH$8 -> 37 | BN35: =AH$9 -> 29 | BO35: =AL$8 -> 35 | BP35: =AL$9 -> 28 | BQ35: 36 | BR35: 29
AY36: =F$8 -> 22 | AZ36: =F$9 -> 15 | BA36: =J$8 -> 29 | BB36: =J$9 -> 23 | BC36: =N$8 -> 26 | BD36: =N$9 -> 19 | BE36: =R$8 -> 30 | BF36: =R$9 -> 24 | BG36: =V$8 -> 27 | BH36: =V$9 -> 21 | BI36: =Z$8 -> 31 | BJ36: =Z$9 -> 25 | BK36: =AD$8 -> 29 | BL36: =AD$9 -> 23 | BM36: =AH$8 -> 37 | BN36: =AH$9 -> 29 | BO36: =AL$8 -> 35 | BP36: =AL$9 -> 28 | BQ36: 36 | BR36: 29
AY37: =F$8 -> 22 | AZ37: =F$9 -> 15 | BA37: =J$8 -> 29 | BB37: =J$9 -> 23 | BC37: =N$8 -> 26 | BD37: =N$9 -> 19 | BE37: =R$8 -> 30 | BF37: =R$9 -> 24 | BG37: =V$8 -> 27 | BH37: =V$9 -> 21 | BI37: =Z$8 -> 31 | BJ37: =Z$9 -> 25 | BK37: =AD$8 -> 29 | BL37: =AD$9 -> 23 | BM37: =AH$8 -> 37 | BN37: =AH$9 -> 29 | BO37: =AL$8 -> 35 | BP37: =AL$9 -> 28 | BQ37: 36 | BR37: 29
AY38: =F$8 -> 22 | AZ38: =F$9 -> 15 | BA38: =J$8 -> 29 | BB38: =J$9 -> 23 | BC38: =N$8 -> 26 | BD38: =N$9 -> 19 | BE38: =R$8 -> 30 | BF38: =R$9 -> 24 | BG38: =V$8 -> 27 | BH38: =V$9 -> 21 | BI38: =Z$8 -> 31 | BJ38: =Z$9 -> 25 | BK38: =AD$8 -> 29 | BL38: =AD$9 -> 23 | BM38: =AH$8 -> 37 | BN38: =AH$9 -> 29 | BO38: =AL$8 -> 35 | BP38: =AL$9 -> 28 | BQ38: 36 | BR38: 29
AY39: =F$8 -> 22 | AZ39: =F$9 -> 15 | BA39: =J$8 -> 29 | BB39: =J$9 -> 23 | BC39: =N$8 -> 26 | BD39: =N$9 -> 19 | BE39: =R$8 -> 30 | BF39: =R$9 -> 24 | BG39: =V$8 -> 27 | BH39: =V$9 -> 21 | BI39: =Z$8 -> 31 | BJ39: =Z$9 -> 25 | BK39: =AD$8 -> 29 | BL39: =AD$9 -> 23 | BM39: =AH$8 -> 37 | BN39: =AH$9 -> 29 | BO39: =AL$8 -> 35 | BP39: =AL$9 -> 28 | BQ39: 36 | BR39: 29
AY40: =F$8 -> 22 | AZ40: =F$9 -> 15 | BA40: =J$8 -> 29 | BB40: =J$9 -> 23 | BC40: =N$8 -> 26 | BD40: =N$9 -> 19 | BE40: =R$8 -> 30 | BF40: =R$9 -> 24 | BG40: =V$8 -> 27 | BH40: =V$9 -> 21 | BI40: =Z$8 -> 31 | BJ40: =Z$9 -> 25 | BK40: =AD$8 -> 29 | BL40: =AD$9 -> 23 | BM40: =AH$8 -> 37 | BN40: =AH$9 -> 29 | BO40: =AL$8 -> 35 | BP40: =AL$9 -> 28 | BQ40: 36 | BR40: 29
AY41: =F$8 -> 22 | AZ41: =F$9 -> 15 | BA41: =J$8 -> 29 | BB41: =J$9 -> 23 | BC41: =N$8 -> 26 | BD41: =N$9 -> 19 | BE41: =R$8 -> 30 | BF41: =R$9 -> 24 | BG41: =V$8 -> 27 | BH41: =V$9 -> 21 | BI41: =Z$8 -> 31 | BJ41: =Z$9 -> 25 | BK41: =AD$8 -> 29 | BL41: =AD$9 -> 23 | BM41: =AH$8 -> 37 | BN41: =AH$9 -> 29 | BO41: =AL$8 -> 35 | BP41: =AL$9 -> 28 | BQ41: 36 | BR41: 29
AY42: =F$8 -> 22 | AZ42: =F$9 -> 15 | BA42: =J$8 -> 29 | BB42: =J$9 -> 23 | BC42: =N$8 -> 26 | BD42: =N$9 -> 19 | BE42: =R$8 -> 30 | BF42: =R$9 -> 24 | BG42: =V$8 -> 27 | BH42: =V$9 -> 21 | BI42: =Z$8 -> 31 | BJ42: =Z$9 -> 25 | BK42: =AD$8 -> 29 | BL42: =AD$9 -> 23 | BM42: =AH$8 -> 37 | BN42: =AH$9 -> 29 | BO42: =AL$8 -> 35 | BP42: =AL$9 -> 28 | BQ42: 36 | BR42: 29
AY43: =F$8 -> 22 | AZ43: =F$9 -> 15 | BA43: =J$8 -> 29 | BB43: =J$9 -> 23 | BC43: =N$8 -> 26 | BD43: =N$9 -> 19 | BE43: =R$8 -> 30 | BF43: =R$9 -> 24 | BG43: =V$8 -> 27 | BH43: =V$9 -> 21 | BI43: =Z$8 -> 31 | BJ43: =Z$9 -> 25 | BK43: =AD$8 -> 29 | BL43: =AD$9 -> 23 | BM43: =AH$8 -> 37 | BN43: =AH$9 -> 29 | BO43: =AL$8 -> 35 | BP43: =AL$9 -> 28 | BQ43: 36 | BR43: 29
AY44: =F$8 -> 22 | AZ44: =F$9 -> 15 | BA44: =J$8 -> 29 | BB44: =J$9 -> 23 | BC44: =N$8 -> 26 | BD44: =N$9 -> 19 | BE44: =R$8 -> 30 | BF44: =R$9 -> 24 | BG44: =V$8 -> 27 | BH44: =V$9 -> 21 | BI44: =Z$8 -> 31 | BJ44: =Z$9 -> 25 | BK44: =AD$8 -> 29 | BL44: =AD$9 -> 23 | BM44: =AH$8 -> 37 | BN44: =AH$9 -> 29 | BO44: =AL$8 -> 35 | BP44: =AL$9 -> 28 | BQ44: 36 | BR44: 29

Sheet ENTK
A1: Enterokokker (ENTK)
A2: 2019-10-01 | D2: PA Jenum
A3: Registrér etter at måleverdiene er lagt inn
A5: Ukentlig | D5: E. faecalis ATCC 29212 | AB5: =E6 -> AMP 2 | AD5: =I6 -> W 5 | AF5: =M6 -> F 100 | AH5: =Q6 -> LZD 10 | AJ5: Gent H30
A6: Dato | B6: Nr | D6: Ampicillin 2 | E6: AMP 2 | F6: Sonegrenser | G6: Target | H6: Trimetoprim 5 | I6: W 5 | J6: Sonegrenser | K6: Target | L6: Nitrofurantoin 100 | M6: F 100 | N6: Sonegrenser | O6: Target | P6: Linezolid 10 | Q6: LZD 10 | R6: Sonegrenser | S6: Target | T6: Gentamicin High 30 | U6: CN 30 | V6: Sonegrenser | W6: Target | AB6: Høy | AC6: Lav | AD6: Høy | AE6: Lav | AF6: Høy | AG6: Lav | AH6: Høy | AI6: Lav | AJ6: Høy | AK6: Lav
A7: Snitt | B7: Siste 30 | D7: =AVERAGE(D$15:D$44) -> 19.75 | E7: +-2SD | F7: =IF(F8="","",IF(D7>(3+((F8+F9)/2)),"NB",IF(D7<(-3+((F8+F9)/2)),"NB","OK"))) -> OK | G7: 18 | H7: =AVERAGE(H$15:H$44) -> 29.75 | I7: +-2SD | J7: =IF(J8="","",IF(H7>(3+((J8+J9)/2)),"NB",IF(H7<(-3+((J8+J9)/2)),"NB","OK"))) -> OK | K7: 28 | L7: =AVERAGE(L$15:L$44) -> 22.5 | M7: +-2SD | N7: =IF(N8="","",IF(L7>(3+((N8+N9)/2)),"NB",IF(L7<(-3+((N8+N9)/2)),"NB","OK"))) -> OK | O7: 21 | P7: =AVERAGE(P$15:P$44) -> 22.5 | Q7: +-2SD | R7: =IF(R8="","",IF(P7>(3+((R8+R9)/2)),"NB",IF(P7<(-3+((R8+R9)/2)),"NB","OK"))) -> OK | S7: 22 | T7: =AVERAGE(T$15:T$44) -> 17.5 | U7: +-2SD | V7: =IF(V8="","",IF(T7>(3+((V8+V9)/2)),"NB",IF(T7<(-3+((V8+V9)/2)),"NB","OK"))) -> OK | W7: 15
A8: SD | B8: Siste 30 | D8: =STDEV(D$15:D$44) -> 0.5 | E8: =D7+(2*D8) -> 20.75 | F8: 21 | H8: =STDEV(H$15:H$44) -> 0.9574271078 | I8: =H7+(2*H8) -> 31.66485422 | J8: 32 | L8: =STDEV(L$15:L$44) -> 0.5773502692 | M8: =L7+(2*L8) -> 23.65470054 | N8: 24 | P8: =STDEV(P$15:P$44) -> 0.5773502692 | Q8: =P7+(2*P8) -> 23.65470054 | R8: 25 | T8: =STDEV(T$15:T$44) -> 0.5773502692 | U8: =T7+(2*T8) -> 18.65470054 | V8: 18
A9: CV% | D9: =D8/D7 -> 0.0253164557 | E9: =D7-(2*D8) -> 18.75 | F9: 15 | H9: =H8/H7 -> 0.03218242379 | I9: =H7-(2*H8) -> 27.83514578 | J9: 24 | L9: =L8/L7 -> 0.02566001196 | M9: =L7-(2*L8) -> 21.34529946 | N9: 18 | P9: =P8/P7 -> 0.02566001196 | Q9: =P7-(2*P8) -> 21.34529946 | R9: 19 | T9: =T8/T7 -> 0.03299144395 | U9: =T7-(2*T8) -> 16.34529946 | V9: 12
A12: Legg inn diameter i hele millimeter i fargede felt i Rad 13
C14: Initialer, Avvik, Komm. | E14: Avvik | F14: s30 | G14: RT | I14: Avvik | J14: s30 | K14: RT | M14: Avvik | N14: s30 | O14: RT | Q14: Avvik | R14: s30 | S14: RT | U14: Avvik | V14: s30 | W14: RT
A15: 2019-09-25 | B15: 1 | D15: 20 | E15: =IF(D15="","",(D15-D$7)/D$7) -> 0.01265822785 | H15: 31 | I15: =IF(H15="","",(H15-H$7)/H$7) -> 0.04201680672 | L15: 23 | M15: =IF(L15="","",(L15-L$7)/L$7) -> 0.02222222222 | P15: 23 | Q15: =IF(P15="","",(P15-P$7)/P$7) -> 0.02222222222 | T15: 18 | U15: =IF(T15="","",(T15-T$7)/T$7) -> 0.02857142857 | AB15: =F$8 -> 21 | AC15: =F$9 -> 15 | AD15: =J$8 -> 32 | AE15: =J$9 -> 24 | AF15: =N$8 -> 24 | AG15: =N$9 -> 18 | AH15: =R$8 -> 25 | AI15: =R$9 -> 19 | AJ15: =V$8 -> 18 | AK15: =V$9 -> 12
A16: 2019-09-18 | B16: =B15+1 -> 2 | D16: 20 | E16: =IF(D16="","",(D16-D$7)/D$7) -> 0.01265822785 | H16: 30 | I16: =IF(H16="","",(H16-H$7)/H$7) -> 0.008403361345 | L16: 22 | M16: =IF(L16="","",(L16-L$7)/L$7) -> -0.02222222222 | P16: 22 | Q16: =IF(P16="","",(P16-P$7)/P$7) -> -0.02222222222 | T16: 17 | U16: =IF(T16="","",(T16-T$7)/T$7) -> -0.02857142857 | AB16: =F$8 -> 21 | AC16: =F$9 -> 15 | AD16: =J$8 -> 32 | AE16: =J$9 -> 24 | AF16: =N$8 -> 24 | AG16: =N$9 -> 18 | AH16: =R$8 -> 25 | AI16: =R$9 -> 19 | AJ16: =V$8 -> 18 | AK16: =V$9 -> 12
A17: 2019-09-11 | B17: 3 | D17: 19 | E17: =IF(D17="","",(D17-D$7)/D$7) -> -0.03797468354 | H17: 29 | I17: =IF(H17="","",(H17-H$7)/H$7) -> -0.02521008403 | L17: 22 | M17: =IF(L17="","",(L17-L$7)/L$7) -> -0.02222222222 | P17: 22 | Q17: =IF(P17="","",(P17-P$7)/P$7) -> -0.02222222222 | T17: 17 | U17: =IF(T17="","",(T17-T$7)/T$7) -> -0.02857142857 | AB17: =F$8 -> 21 | AC17: =F$9 -> 15 | AD17: =J$8 -> 32 | AE17: =J$9 -> 24 | AF17: =N$8 -> 24 | AG17: =N$9 -> 18 | AH17: =R$8 -> 25 | AI17: =R$9 -> 19 | AJ17: =V$8 -> 18 | AK17: =V$9 -> 12
A18: 2019-09-04 | B18: 4 | D18: 20 | E18: =IF(D18="","",(D18-D$7)/D$7) -> 0.01265822785 | H18: 29 | I18: =IF(H18="","",(H18-H$7)/H$7) -> -0.02521008403 | L18: 23 | M18: =IF(L18="","",(L18-L$7)/L$7) -> 0.02222222222 | P18: 23 | Q18: =IF(P18="","",(P18-P$7)/P$7) -> 0.02222222222 | T18: 18 | U18: =IF(T18="","",(T18-T$7)/T$7) -> 0.02857142857 | AB18: =F$8 -> 21 | AC18: =F$9 -> 15 | AD18: =J$8 -> 32 | AE18: =J$9 -> 24 | AF18: =N$8 -> 24 | AG18: =N$9 -> 18 | AH18: =R$8 -> 25 | AI18: =R$9 -> 19 | AJ18: =V$8 -> 18 | AK18: =V$9 -> 12
AB19: =F$8 -> 21 | AC19: =F$9 -> 15 | AD19: =J$8 -> 32 | AE19: =J$9 -> 24 | AF19: =N$8 -> 24 | AG19: =N$9 -> 18 | AH19: =R$8 -> 25 | AI19: =R$9 -> 19 | AJ19: =V$8 -> 18 | AK19: =V$9 -> 12
AB20: =F$8 -> 21 | AC20: =F$9 -> 15 | AD20: =J$8 -> 32 | AE20: =J$9 -> 24 | AF20: =N$8 -> 24 | AG20: =N$9 -> 18 | AH20: =R$8 -> 25 | AI20: =R$9 -> 19 | AJ20: =V$8 -> 18 | AK20: =V$9 -> 12
AB21: =F$8 -> 21 | AC21: =F$9 -> 15 | AD21: =J$8 -> 32 | AE21: =J$9 -> 24 | AF21: =N$8 -> 24 | AG21: =N$9 -> 18 | AH21: =R$8 -> 25 | AI21: =R$9 -> 19 | AJ21: =V$8 -> 18 | AK21: =V$9 -> 12
AB22: =F$8 -> 21 | AC22: =F$9 -> 15 | AD22: =J$8 -> 32 | AE22: =J$9 -> 24 | AF22: =N$8 -> 24 | AG22: =N$9 -> 18 | AH22: =R$8 -> 25 | AI22: =R$9 -> 19 | AJ22: =V$8 -> 18 | AK22: =V$9 -> 12
AB23: =F$8 -> 21 | AC23: =F$9 -> 15 | AD23: =J$8 -> 32 | AE23: =J$9 -> 24 | AF23: =N$8 -> 24 | AG23: =N$9 -> 18 | AH23: =R$8 -> 25 | AI23: =R$9 -> 19 | AJ23: =V$8 -> 18 | AK23: =V$9 -> 12
AB24: =F$8 -> 21 | AC24: =F$9 -> 15 | AD24: =J$8 -> 32 | AE24: =J$9 -> 24 | AF24: =N$8 -> 24 | AG24: =N$9 -> 18 | AH24: =R$8 -> 25 | AI24: =R$9 -> 19 | AJ24: =V$8 -> 18 | AK24: =V$9 -> 12
AB25: =F$8 -> 21 | AC25: =F$9 -> 15 | AD25: =J$8 -> 32 | AE25: =J$9 -> 24 | AF25: =N$8 -> 24 | AG25: =N$9 -> 18 | AH25: =R$8 -> 25 | AI25: =R$9 -> 19 | AJ25: =V$8 -> 18 | AK25: =V$9 -> 12
AB26: =F$8 -> 21 | AC26: =F$9 -> 15 | AD26: =J$8 -> 32 | AE26: =J$9 -> 24 | AF26: =N$8 -> 24 | AG26: =N$9 -> 18 | AH26: =R$8 -> 25 | AI26: =R$9 -> 19 | AJ26: =V$8 -> 18 | AK26: =V$9 -> 12
AB27: =F$8 -> 21 | AC27: =F$9 -> 15 | AD27: =J$8 -> 32 | AE27: =J$9 -> 24 | AF27: =N$8 -> 24 | AG27: =N$9 -> 18 | AH27: =R$8 -> 25 | AI27: =R$9 -> 19 | AJ27: =V$8 -> 18 | AK27: =V$9 -> 12
AB28: =F$8 -> 21 | AC28: =F$9 -> 15 | AD28: =J$8 -> 32 | AE28: =J$9 -> 24 | AF28: =N$8 -> 24 | AG28: =N$9 -> 18 | AH28: =R$8 -> 25 | AI28: =R$9 -> 19 | AJ28: =V$8 -> 18 | AK28: =V$9 -> 12
AB29: =F$8 -> 21 | AC29: =F$9 -> 15 | AD29: =J$8 -> 32 | AE29: =J$9 -> 24 | AF29: =N$8 -> 24 | AG29: =N$9 -> 18 | AH29: =R$8 -> 25 | AI29: =R$9 -> 19 | AJ29: =V$8 -> 18 | AK29: =V$9 -> 12
AB30: 21 | AC30: 15 | AD30: 32 | AE30: 24 | AF30: 24 | AG30: 18 | AH30: 25 | AI30: 19 | AJ30: 18 | AK30: 12
AB31: =F$8 -> 21 | AC31: =F$9 -> 15 | AD31: =J$8 -> 32 | AE31: =J$9 -> 24 | AF31: =N$8 -> 24 | AG31: =N$9 -> 18 | AH31: =R$8 -> 25 | AI31: =R$9 -> 19 | AJ31: =V$8 -> 18 | AK31: =V$9 -> 12
AB32: 21 | AC32: =F$9 -> 15 | AD32: 32 | AE32: 24 | AF32: 24 | AG32: 18 | AH32: 25 | AI32: 19 | AJ32: 18 | AK32: 12
AB33: 21 | AC33: 15 | AD33: 32 | AE33: 24 | AF33: 24 | AG33: 18 | AH33: 25 | AI33: 19 | AJ33: 18 | AK33: 12
AB34: =F$8 -> 21 | AC34: 15 | AD34: =J$8 -> 32 | AE34: =J$9 -> 24 | AF34: =N$8 -> 24 | AG34: =N$9 -> 18 | AH34: =R$8 -> 25 | AI34: =R$9 -> 19 | AJ34: =V$8 -> 18 | AK34: =V$9 -> 12
AB35: =F$8 -> 21 | AC35: =F$9 -> 15 | AD35: =J$8 -> 32 | AE35: =J$9 -> 24 | AF35: =N$8 -> 24 | AG35: =N$9 -> 18 | AH35: =R$8 -> 25 | AI35: =R$9 -> 19 | AJ35: =V$8 -> 18 | AK35: =V$9 -> 12
AB36: =F$8 -> 21 | AC36: =F$9 -> 15 | AD36: =J$8 -> 32 | AE36: =J$9 -> 24 | AF36: =N$8 -> 24 | AG36: =N$9 -> 18 | AH36: =R$8 -> 25 | AI36: =R$9 -> 19 | AJ36: =V$8 -> 18 | AK36: =V$9 -> 12
AB37: =F$8 -> 21 | AC37: =F$9 -> 15 | AD37: =J$8 -> 32 | AE37: =J$9 -> 24 | AF37: =N$8 -> 24 | AG37: =N$9 -> 18 | AH37: =R$8 -> 25 | AI37: =R$9 -> 19 | AJ37: =V$8 -> 18 | AK37: =V$9 -> 12
AB38: =F$8 -> 21 | AC38: =F$9 -> 15 | AD38: =J$8 -> 32 | AE38: =J$9 -> 24 | AF38: =N$8 -> 24 | AG38: =N$9 -> 18 | AH38: =R$8 -> 25 | AI38: =R$9 -> 19 | AJ38: =V$8 -> 18 | AK38: =V$9 -> 12
AB39: =F$8 -> 21 | AC39: =F$9 -> 15 | AD39: =J$8 -> 32 | AE39: =J$9 -> 24 | AF39: =N$8 -> 24 | AG39: =N$9 -> 18 | AH39: =R$8 -> 25 | AI39: =R$9 -> 19 | AJ39: =V$8 -> 18 | AK39: =V$9 -> 12
AB40: =F$8 -> 21 | AC40: =F$9 -> 15 | AD40: =J$8 -> 32 | AE40: =J$9 -> 24 | AF40: =N$8 -> 24 | AG40: =N$9 -> 18 | AH40: =R$8 -> 25 | AI40: =R$9 -> 19 | AJ40: =V$8 -> 18 | AK40: =V$9 -> 12
AB41: =F$8 -> 21 | AC41: =F$9 -> 15 | AD41: =J$8 -> 32 | AE41: =J$9 -> 24 | AF41: =N$8 -> 24 | AG41: =N$9 -> 18 | AH41: =R$8 -> 25 | AI41: =R$9 -> 19 | AJ41: =V$8 -> 18 | AK41: =V$9 -> 12
AB42: =F$8 -> 21 | AC42: =F$9 -> 15 | AD42: =J$8 -> 32 | AE42: =J$9 -> 24 | AF42: =N$8 -> 24 | AG42: =N$9 -> 18 | AH42: =R$8 -> 25 | AI42: =R$9 -> 19 | AJ42: =V$8 -> 18 | AK42: =V$9 -> 12
AB43: =F$8 -> 21 | AC43: =F$9 -> 15 | AD43: =J$8 -> 32 | AE43: =J$9 -> 24 | AF43: =N$8 -> 24 | AG43: =N$9 -> 18 | AH43: =R$8 -> 25 | AI43: =R$9 -> 19 | AJ43: =V$8 -> 18 | AK43: =V$9 -> 12
AB44: =F$8 -> 21 | AC44: =F$9 -> 15 | AD44: =J$8 -> 32 | AE44: =J$9 -> 24 | AF44: =N$8 -> 24 | AG44: =N$9 -> 18 | AH44: =R$8 -> 25 | AI44: =R$9 -> 19 | AJ44: =V$8 -> 18 | AK44: =V$9 -> 12

Sheet HAEMO
A1: Haemophilus influenzae (HAEMO)
A2: 2019-10-01 | D2: PA Jenum
A3: Registrér etter at måleverdiene er lagt inn
A5: Ukentlig | D5: H.influenzae ATCC 49766 | AR5: =E6 -> P 1 | AT5: =I6 -> SXT 25 | AV5: =M6 -> TE 30 | AX5: =Q6 -> CIP 5 | AZ5: =U6 -> CEC 30 | BB5: CXM 30
A6: Dato | B6: Nr | D6: Penicillin G 1 µg | E6: P 1 | F6: Sonegrenser | G6: Target | H6: Trim-sulfa | I6: SXT 25 | J6: Sonegrenser | K6: Target | L6: Tetracyclin 30 | M6: TE 30 | N6: Sonegrenser | O6: Target | P6: Ciprofloxacin | Q6: CIP 5 | R6: Sonegrenser | S6: Target | T6: Cefaclor 30 | U6: CEC 30 | V6: Sonegrenser | W6: Target | X6: Cefuroxime 30 | Y6: CXM 30 | Z6: Sonegrenser | AA6: Target | AR6: Øvre | AS6: Nedre | AT6: Øvre | AU6: Nedre | AV6: Øvre | AW6: Nedre | AX6: Øvre | AY6: Nedre | AZ6: Øvre | BA6: Nedre | BB6: Øvre | BC6: Nedre
A7: Snitt | B7: Siste 30 | D7: =AVERAGE(D$15:D$44) -> 17.25 | E7: +-2SD | F7: =IF(F8="","",IF(D7>(3+((F8+F9)/2)),"NB",IF(D7<(-3+((F8+F9)/2)),"NB","OK"))) -> OK | G7: 18 | H7: =AVERAGE(H$15:H$44) -> 31.25 | I7: +-2SD | J7: =IF(J8="","",IF(H7>(3+((J8+J9)/2)),"NB",IF(H7<(-3+((J8+J9)/2)),"NB","OK"))) -> OK | K7: 31 | L7: =AVERAGE(L$15:L$44) -> 29.75 | M7: +-2SD | N7: =IF(N8="","",IF(L7>(3+((N8+N9)/2)),"NB",IF(L7<(-3+((N8+N9)/2)),"NB","OK"))) -> OK | O7: 31 | P7: =AVERAGE(P$15:P$44) -> 34.75 | Q7: +-2SD | R7: =IF(R8="","",IF(P7>(3+((R8+R9)/2)),"NB",IF(P7<(-3+((R8+R9)/2)),"NB","OK"))) -> OK | S7: 36 | T7: =AVERAGE(T$15:T$44) -> 25.5 | U7: +-2SD | V7: =IF(V8="","",IF(T7>(3+((V8+V9)/2)),"NB",IF(T7<(-3+((V8+V9)/2)),"NB","OK"))) -> OK | W7: 27 | X7: =AVERAGE(X$15:X43) -> 28.75 | Y7: +-2SD | Z7: =IF(Z8="","",IF(X7>(3+((Z8+Z9)/2)),"NB",IF(X7<(-3+((Z8+Z9)/2)),"NB","OK"))) -> OK | AA7: 30
A8: SD | B8: Siste 30 | D8: =STDEV(D$15:D$44) -> 0.5 | E8: =D7+(2*D8) -> 18.25 | F8: 21 | H8: =STDEV(H$15:H$44) -> 0.5 | I8: =H7+(2*H8) -> 32.25 | J8: 35 | L8: =STDEV(L$15:L$44) -> 0.5 | M8: =L7+(2*L8) -> 30.75 | N8: 34 | P8: =STDEV(P$15:P$44) -> 0.5 | Q8: =P7+(2*P8) -> 35.75 | R8: 40 | T8: =STDEV(T$15:T$44) -> 0.5773502692 | U8: =T7+(2*T8) -> 26.65470054 | V8: 30 | X8: =STDEV(X$15:X43) -> 0.9574271078 | Y8: =X7+(2*X8) -> 30.66485422 | Z8: 34
A9: CV% | D9: =D8/D7 -> 0.02898550725 | E9: =D7-(2*D8) -> 16.25 | F9: 15 | H9: =H8/H7 -> 0.016 | I9: =H7-(2*H8) -> 30.25 | J9: 27 | L9: =L8/L7 -> 0.01680672269 | M9: =L7-(2*L8) -> 28.75 | N9: 28 | P9: =P8/P7 -> 0.01438848921 | Q9: =P7-(2*P8) -> 33.75 | R9: 32 | T9: =T8/T7 -> 0.02264118703 | U9: =T7-(2*T8) -> 24.34529946 | V9: 24 | X9: =X8/X7 -> 0.03330181244 | Y9: =X7-(2*X8) -> 26.83514578 | Z9: 26
A12: Legg inn diameter i hele millimeter i fargede felt i Rad 13
C14: Initialer, Avvik, Komm. | E14: Avvik | F14: s30 | G14: RT | I14: Avvik | J14: s30 | K14: RT | M14: Avvik | N14: s30 | O14: RT | Q14: Avvik | R14: s30 | S14: RT | U14: Avvik | V14: s30 | W14: RT | Y14: Avvik | Z14: s30 | AA14: RT
A15: 2019-09-25 | B15: 1 | D15: 17 | E15: =(D15-$D$7)/$D$7 -> -0.01449275362 | F15: =IF((ABS(E15)>($D$9*3)),"AV",IF((ABS(E15)>($D$9*2)),"NB","")) ->  | H15: 31 | I15: =(H15-$H$7)/$H$7 -> -0.008 | J15: =IF((ABS(I15)>($H$9*3)),"AV",IF((ABS(I15)>($H$9*2)),"NB","")) ->  | L15: 30 | M15: =(L15-$L$7)/$L$7 -> 0.008403361345 | N15: =IF((ABS(M15)>($L$9*3)),"AV",IF((ABS(M15)>($L$9*2)),"NB","")) ->  | P15: 35 | Q15: =(P15-$P$7)/$P$7 -> 0.007194244604 | R15: =IF((ABS(Q15)>($P$9*3)),"AV",IF((ABS(Q15)>($P$9*2)),"NB","")) ->  | T15: 26 | U15: =(T15-$T$7)/$T$7 -> 0.01960784314 | V15: =IF((ABS(U15)>($T$9*3)),"AV",IF((ABS(U15)>($T$9*2)),"NB","")) ->  | X15: 30 | Y15: =(X15-$X$7)/$X$7 -> 0.04347826087 | Z15: =IF((ABS(Y15)>($X$9*3)),"AV",IF((ABS(Y15)>($X$9*2)),"NB","")) ->  | AR15: =F$8 -> 21 | AS15: =F$9 -> 15 | AT15: =J$8 -> 35 | AU15: =J$9 -> 27 | AV15: =N$8 -> 34 | AW15: =N$9 -> 28 | AX15: =R$8 -> 40 | AY15: =R$9 -> 32 | AZ15: =V$8 -> 30 | BA15: =V$9 -> 24 | BB15: =Z$8 -> 34 | BC15: =Z$9 -> 26
A16: 2019-09-18 | B16: =B15+1 -> 2 | D16: 18 | E16: =(D16-$D$7)/$D$7 -> 0.04347826087 | F16: =IF((ABS(E16)>($D$9*3)),"AV",IF((ABS(E16)>($D$9*2)),"NB","")) ->  | H16: 32 | I16: =(H16-$H$7)/$H$7 -> 0.024 | J16: =IF((ABS(I16)>($H$9*3)),"AV",IF((ABS(I16)>($H$9*2)),"NB","")) ->  | L16: 29 | M16: =(L16-$L$7)/$L$7 -> -0.02521008403 | N16: =IF((ABS(M16)>($L$9*3)),"AV",IF((ABS(M16)>($L$9*2)),"NB","")) ->  | P16: 35 | Q16: =(P16-$P$7)/$P$7 -> 0.007194244604 | R16: =IF((ABS(Q16)>($P$9*3)),"AV",IF((ABS(Q16)>($P$9*2)),"NB","")) ->  | T16: 25 | U16: =(T16-$T$7)/$T$7 -> -0.01960784314 | V16: =IF((ABS(U16)>($T$9*3)),"AV",IF((ABS(U16)>($T$9*2)),"NB","")) ->  | X16: 28 | Y16: =(X16-$X$7)/$X$7 -> -0.02608695652 | Z16: =IF((ABS(Y16)>($X$9*3)),"AV",IF((ABS(Y16)>($X$9*2)),"NB","")) ->  | AR16: =F$8 -> 21 | AS16: =F$9 -> 15 | AT16: =J$8 -> 35 | AU16: =J$9 -> 27 | AV16: =N$8 -> 34 | AW16: =N$9 -> 28 | AX16: =R$8 -> 40 | AY16: =R$9 -> 32 | AZ16: =V$8 -> 30 | BA16: =V$9 -> 24 | BB16: =Z$8 -> 34 | BC16: =Z$9 -> 26
A17: 2019-09-04 | B17: 3 | D17: 17 | E17: =(D17-$D$7)/$D$7 -> -0.01449275362 | F17: =IF((ABS(E17)>($D$9*3)),"AV",IF((ABS(E17)>($D$9*2)),"NB","")) ->  | H17: 31 | I17: =(H17-$H$7)/$H$7 -> -0.008 | J17: =IF((ABS(I17)>($H$9*3)),"AV",IF((ABS(I17)>($H$9*2)),"NB","")) ->  | L17: 30 | M17: =(L17-$L$7)/$L$7 -> 0.008403361345 | N17: =IF((ABS(M17)>($L$9*3)),"AV",IF((ABS(M17)>($L$9*2)),"NB","")) ->  | P17: 35 | Q17: =(P17-$P$7)/$P$7 -> 0.007194244604 | R17: =IF((ABS(Q17)>($P$9*3)),"AV",IF((ABS(Q17)>($P$9*2)),"NB","")) ->  | T17: 25 | U17: =(T17-$T$7)/$T$7 -> -0.01960784314 | V17: =IF((ABS(U17)>($T$9*3)),"AV",IF((ABS(U17)>($T$9*2)),"NB","")) ->  | X17: 28 | Y17: =(X17-$X$7)/$X$7 -> -0.02608695652 | Z17: =IF((ABS(Y17)>($X$9*3)),"AV",IF((ABS(Y17)>($X$9*2)),"NB","")) ->  | AR17: =F$8 -> 21 | AS17: =F$9 -> 15 | AT17: =J$8 -> 35 | AU17: =J$9 -> 27 | AV17: =N$8 -> 34 | AW17: =N$9 -> 28 | AX17: =R$8 -> 40 | AY17: =R$9 -> 32 | AZ17: =V$8 -> 30 | BA17: =V$9 -> 24 | BB17: =Z$8 -> 34 | BC17: =Z$9 -> 26
A18: 2019-08-28 | B18: 4 | D18: 17 | E18: =(D18-$D$7)/$D$7 -> -0.01449275362 | F18: =IF((ABS(E18)>($D$9*3)),"AV",IF((ABS(E18)>($D$9*2)),"NB","")) ->  | H18: 31 | I18: =(H18-$H$7)/$H$7 -> -0.008 | J18: =IF((ABS(I18)>($H$9*3)),"AV",IF((ABS(I18)>($H$9*2)),"NB","")) ->  | L18: 30 | M18: =(L18-$L$7)/$L$7 -> 0.008403361345 | N18: =IF((ABS(M18)>($L$9*3)),"AV",IF((ABS(M18)>($L$9*2)),"NB","")) ->  | P18: 34 | Q18: =(P18-$P$7)/$P$7 -> -0.02158273381 | R18: =IF((ABS(Q18)>($P$9*3)),"AV",IF((ABS(Q18)>($P$9*2)),"NB","")) ->  | T18: 26 | U18: =(T18-$T$7)/$T$7 -> 0.01960784314 | V18: =IF((ABS(U18)>($T$9*3)),"AV",IF((ABS(U18)>($T$9*2)),"NB","")) ->  | X18: 29 | Y18: =(X18-$X$7)/$X$7 -> 0.008695652174 | Z18: =IF((ABS(Y18)>($X$9*3)),"AV",IF((ABS(Y18)>($X$9*2)),"NB","")) ->  | AR18: =F$8 -> 21 | AS18: =F$9 -> 15 | AT18: =J$8 -> 35 | AU18: =J$9 -> 27 | AV18: =N$8 -> 34 | AW18: =N$9 -> 28 | AX18: =R$8 -> 40 | AY18: =R$9 -> 32 | AZ18: =V$8 -> 30 | BA18: =V$9 -> 24 | BB18: =Z$8 -> 34 | BC18: =Z$9 -> 26
AR19: =F$8 -> 21 | AS19: =F$9 -> 15 | AT19: =J$8 -> 35 | AU19: =J$9 -> 27 | AV19: =N$8 -> 34 | AW19: =N$9 -> 28 | AX19: =R$8 -> 40 | AY19: =R$9 -> 32 | AZ19: =V$8 -> 30 | BA19: =V$9 -> 24 | BB19: =Z$8 -> 34 | BC19: =Z$9 -> 26
AR20: =F$8 -> 21 | AS20: =F$9 -> 15 | AT20: =J$8 -> 35 | AU20: =J$9 -> 27 | AV20: =N$8 -> 34 | AW20: =N$9 -> 28 | AX20: =R$8 -> 40 | AY20: =R$9 -> 32 | AZ20: =V$8 -> 30 | BA20: =V$9 -> 24 | BB20: =Z$8 -> 34 | BC20: =Z$9 -> 26
AR21: =F$8 -> 21 | AS21: =F$9 -> 15 | AT21: =J$8 -> 35 | AU21: =J$9 -> 27 | AV21: =N$8 -> 34 | AW21: =N$9 -> 28 | AX21: =R$8 -> 40 | AY21: =R$9 -> 32 | AZ21: =V$8 -> 30 | BA21: =V$9 -> 24 | BB21: =Z$8 -> 34 | BC21: =Z$9 -> 26
AR22: =F$8 -> 21 | AS22: =F$9 -> 15 | AT22: =J$8 -> 35 | AU22: =J$9 -> 27 | AV22: =N$8 -> 34 | AW22: =N$9 -> 28 | AX22: =R$8 -> 40 | AY22: =R$9 -> 32 | AZ22: =V$8 -> 30 | BA22: =V$9 -> 24 | BB22: =Z$8 -> 34 | BC22: =Z$9 -> 26
AR23: =F$8 -> 21 | AS23: =F$9 -> 15 | AT23: =J$8 -> 35 | AU23: =J$9 -> 27 | AV23: =N$8 -> 34 | AW23: =N$9 -> 28 | AX23: =R$8 -> 40 | AY23: =R$9 -> 32 | AZ23: =V$8 -> 30 | BA23: =V$9 -> 24 | BB23: =Z$8 -> 34 | BC23: =Z$9 -> 26
AR24: =F$8 -> 21 | AS24: =F$9 -> 15 | AT24: =J$8 -> 35 | AU24: =J$9 -> 27 | AV24: =N$8 -> 34 | AW24: =N$9 -> 28 | AX24: =R$8 -> 40 | AY24: =R$9 -> 32 | AZ24: =V$8 -> 30 | BA24: =V$9 -> 24 | BB24: =Z$8 -> 34 | BC24: =Z$9 -> 26
AR25: =F$8 -> 21 | AS25: =F$9 -> 15 | AT25: =J$8 -> 35 | AU25: =J$9 -> 27 | AV25: =N$8 -> 34 | AW25: =N$9 -> 28 | AX25: =R$8 -> 40 | AY25: =R$9 -> 32 | AZ25: =V$8 -> 30 | BA25: =V$9 -> 24 | BB25: =Z$8 -> 34 | BC25: =Z$9 -> 26
AR26: =F$8 -> 21 | AS26: =F$9 -> 15 | AT26: =J$8 -> 35 | AU26: =J$9 -> 27 | AV26: =N$8 -> 34 | AW26: =N$9 -> 28 | AX26: =R$8 -> 40 | AY26: =R$9 -> 32 | AZ26: =V$8 -> 30 | BA26: =V$9 -> 24 | BB26: =Z$8 -> 34 | BC26: =Z$9 -> 26
AR27: =F$8 -> 21 | AS27: =F$9 -> 15 | AT27: =J$8 -> 35 | AU27: =J$9 -> 27 | AV27: =N$8 -> 34 | AW27: =N$9 -> 28 | AX27: =R$8 -> 40 | AY27: =R$9 -> 32 | AZ27: =V$8 -> 30 | BA27: =V$9 -> 24 | BB27: =Z$8 -> 34 | BC27: =Z$9 -> 26
AR28: =F$8 -> 21 | AS28: =F$9 -> 15 | AT28: =J$8 -> 35 | AU28: =J$9 -> 27 | AV28: =N$8 -> 34 | AW28: =N$9 -> 28 | AX28: =R$8 -> 40 | AY28: =R$9 -> 32 | AZ28: =V$8 -> 30 | BA28: =V$9 -> 24 | BB28: =Z$8 -> 34 | BC28: =Z$9 -> 26
AR29: =F$8 -> 21 | AS29: =F$9 -> 15 | AT29: =J$8 -> 35 | AU29: =J$9 -> 27 | AV29: =N$8 -> 34 | AW29: =N$9 -> 28 | AX29: =R$8 -> 40 | AY29: =R$9 -> 32 | AZ29: =V$8 -> 30 | BA29: =V$9 -> 24 | BB29: =Z$8 -> 34 | BC29: =Z$9 -> 26
AR30: =F$8 -> 21 | AS30: =F$9 -> 15 | AT30: =J$8 -> 35 | AU30: =J$9 -> 27 | AV30: =N$8 -> 34 | AW30: =N$9 -> 28 | AX30: =R$8 -> 40 | AY30: =R$9 -> 32 | AZ30: =V$8 -> 30 | BA30: =V$9 -> 24 | BB30: =Z$8 -> 34 | BC30: =Z$9 -> 26
AR31: =F$8 -> 21 | AS31: =F$9 -> 15 | AT31: =J$8 -> 35 | AU31: =J$9 -> 27 | AV31: =N$8 -> 34 | AW31: =N$9 -> 28 | AX31: =R$8 -> 40 | AY31: =R$9 -> 32 | AZ31: =V$8 -> 30 | BA31: =V$9 -> 24 | BB31: =Z$8 -> 34 | BC31: =Z$9 -> 26
AR32: =F$8 -> 21 | AS32: =F$9 -> 15 | AT32: =J$8 -> 35 | AU32: =J$9 -> 27 | AV32: =N$8 -> 34 | AW32: =N$9 -> 28 | AX32: =R$8 -> 40 | AY32: =R$9 -> 32 | AZ32: =V$8 -> 30 | BA32: =V$9 -> 24 | BB32: =Z$8 -> 34 | BC32: =Z$9 -> 26
AR33: =F$8 -> 21 | AS33: =F$9 -> 15 | AT33: =J$8 -> 35 | AU33: =J$9 -> 27 | AV33: =N$8 -> 34 | AW33: =N$9 -> 28 | AX33: =R$8 -> 40 | AY33: =R$9 -> 32 | AZ33: =V$8 -> 30 | BA33: =V$9 -> 24 | BB33: =Z$8 -> 34 | BC33: =Z$9 -> 26
AR34: =F$8 -> 21 | AS34: =F$9 -> 15 | AT34: =J$8 -> 35 | AU34: =J$9 -> 27 | AV34: =N$8 -> 34 | AW34: =N$9 -> 28 | AX34: =R$8 -> 40 | AY34: =R$9 -> 32 | AZ34: =V$8 -> 30 | BA34: =V$9 -> 24 | BB34: =Z$8 -> 34 | BC34: =Z$9 -> 26
AR35: =F$8 -> 21 | AS35: =F$9 -> 15 | AT35: =J$8 -> 35 | AU35: =J$9 -> 27 | AV35: =N$8 -> 34 | AW35: =N$9 -> 28 | AX35: =R$8 -> 40 | AY35: =R$9 -> 32 | AZ35: =V$8 -> 30 | BA35: =V$9 -> 24 | BB35: =Z$8 -> 34 | BC35: =Z$9 -> 26
AR36: =F$8 -> 21 | AS36: =F$9 -> 15 | AT36: =J$8 -> 35 | AU36: =J$9 -> 27 | AV36: =N$8 -> 34 | AW36: =N$9 -> 28 | AX36: =R$8 -> 40 | AY36: =R$9 -> 32 | AZ36: =V$8 -> 30 | BA36: =V$9 -> 24 | BB36: =Z$8 -> 34 | BC36: =Z$9 -> 26
AR37: =F$8 -> 21 | AS37: =F$9 -> 15 | AT37: =J$8 -> 35 | AU37: =J$9 -> 27 | AV37: =N$8 -> 34 | AW37: =N$9 -> 28 | AX37: =R$8 -> 40 | AY37: =R$9 -> 32 | AZ37: =V$8 -> 30 | BA37: =V$9 -> 24 | BB37: =Z$8 -> 34 | BC37: =Z$9 -> 26
AR38: =F$8 -> 21 | AS38: =F$9 -> 15 | AT38: =J$8 -> 35 | AU38: =J$9 -> 27 | AV38: =N$8 -> 34 | AW38: =N$9 -> 28 | AX38: =R$8 -> 40 | AY38: =R$9 -> 32 | AZ38: =V$8 -> 30 | BA38: =V$9 -> 24 | BB38: =Z$8 -> 34 | BC38: =Z$9 -> 26
AR39: =F$8 -> 21 | AS39: =F$9 -> 15 | AT39: =J$8 -> 35 | AU39: =J$9 -> 27 | AV39: =N$8 -> 34 | AW39: =N$9 -> 28 | AX39: =R$8 -> 40 | AY39: =R$9 -> 32 | AZ39: =V$8 -> 30 | BA39: =V$9 -> 24 | BB39: =Z$8 -> 34 | BC39: =Z$9 -> 26
AR40: =F$8 -> 21 | AS40: =F$9 -> 15 | AT40: =J$8 -> 35 | AU40: =J$9 -> 27 | AV40: =N$8 -> 34 | AW40: =N$9 -> 28 | AX40: =R$8 -> 40 | AY40: =R$9 -> 32 | AZ40: =V$8 -> 30 | BA40: =V$9 -> 24 | BB40: =Z$8 -> 34 | BC40: =Z$9 -> 26
AR41: =F$8 -> 21 | AS41: =F$9 -> 15 | AT41: =J$8 -> 35 | AU41: =J$9 -> 27 | AV41: =N$8 -> 34 | AW41: =N$9 -> 28 | AX41: =R$8 -> 40 | AY41: =R$9 -> 32 | AZ41: =V$8 -> 30 | BA41: =V$9 -> 24 | BB41: =Z$8 -> 34 | BC41: =Z$9 -> 26
AR42: =F$8 -> 21 | AS42: =F$9 -> 15 | AT42: =J$8 -> 35 | AU42: =J$9 -> 27 | AV42: =N$8 -> 34 | AW42: =N$9 -> 28 | AX42: =R$8 -> 40 | AY42: =R$9 -> 32 | AZ42: =V$8 -> 30 | BA42: =V$9 -> 24 | BB42: =Z$8 -> 34 | BC42: =Z$9 -> 26
AR43: =F$8 -> 21 | AS43: =F$9 -> 15 | AT43: =J$8 -> 35 | AU43: =J$9 -> 27 | AV43: =N$8 -> 34 | AW43: =N$9 -> 28 | AX43: =R$8 -> 40 | AY43: =R$9 -> 32 | AZ43: =V$8 -> 30 | BA43: =V$9 -> 24 | BB43: =Z$8 -> 34 | BC43: =Z$9 -> 26
AR44: =F$8 -> 21 | AS44: =F$9 -> 15 | AT44: =J$8 -> 35 | AU44: =J$9 -> 27 | AV44: =N$8 -> 34 | AW44: =N$9 -> 28 | AX44: =R$8 -> 40 | AY44: =R$9 -> 32 | AZ44: =V$8 -> 30 | BA44: =V$9 -> 24 | BB44: =Z$8 -> 34 | BC44: =Z$9 -> 26

Sheet PSEUD
A1: Pseudomonas (PSEUD)
A2: 2019-10-01 | D2: PA Jenum
A3: Registrér etter at måleverdiene er lagt inn
A5: Ukentlig | D5: P.aeruginosa ATCC 27853 | AM5: CIP | AO5: TZP | AQ5: CAZ | AS5: MEM | AU5: CN | AW5: IMP
A6: Dato | B6: Nr | D6: Ciprofloxacin 5 | E6: CIP 5 | F6: Sonegrenser | G6: Target | H6: Piperacillin Tazobactam | I6: TZP 36 | J6: Sonegrenser | K6: Target | L6: Ceftazidim 10 | M6: CAZ 10 | N6: Sonegrenser | O6: Target | P6: Meropenem 10 | Q6: MEM 10 | R6: Sonegrenser | S6: Target | T6: Tobramycin 10 | U6: TOB 10 | V6: Sonegrenser | W6: Target | X6: Imipenem 10 | Y6: IPM 10 | Z6: Sonegrenser | AA6: Target | AM6: Øvre | AN6: Nedre | AO6: Øvre | AP6: Nedre | AQ6: Øvre | AR6: Nedre | AS6: Øvre | AT6: Nedre | AU6: Øvre | AV6: Nedre | AW6: Øvre | AX6: Nedre
A7: Snitt | B7: Siste 30 | D7: =AVERAGE(D$15:D$44) -> 29.75 | E7: +-2SD | F7: =IF(F8="","",IF(D7>(3+((F8+F9)/2)),"NB",IF(D7<(-3+((F8+F9)/2)),"NB","OK"))) -> OK | G7: 29 | H7: =AVERAGE(H$15:H$44) -> 25.75 | I7: +-2SD | J7: =IF(J8="","",IF(H7>(3+((J8+J9)/2)),"NB",IF(H7<(-3+((J8+J9)/2)),"NB","OK"))) -> OK | K7: 26 | L7: =AVERAGE(L$15:L$44) -> 23.75 | M7: +-2SD | N7: =IF(N8="","",IF(L7>(3+((N8+N9)/2)),"NB",IF(L7<(-3+((N8+N9)/2)),"NB","OK"))) -> OK | O7: 24 | P7: =AVERAGE(P$15:P$44) -> 28.25 | Q7: +-2SD | R7: =IF(R8="","",IF(P7>(3+((R8+R9)/2)),"NB",IF(P7<(-3+((R8+R9)/2)),"NB","OK"))) -> OK | S7: 30 | T7: =AVERAGE(T$15:T$44) -> 23 | U7: +-2SD | V7: =IF(V8="","",IF(T7>(3+((V8+V9)/2)),"NB",IF(T7<(-3+((V8+V9)/2)),"NB","OK"))) -> OK | W7: 23 | X7: =AVERAGE(X$15:X$44) -> 23 | Y7: +-2SD | Z7: =IF(Z8="","",IF(X7>(3+((Z8+Z9)/2)),"NB",IF(X7<(-3+((Z8+Z9)/2)),"NB","OK"))) -> OK | AA7: 24
A8: SD | B8: Siste 30 | D8: =STDEV(D$15:D$44) -> 0.5 | E8: =D7+(2*D8) -> 30.75 | F8: 33 | H8: =STDEV(H$15:H$44) -> 0.5 | I8: =H7+(2*H8) -> 26.75 | J8: 29 | L8: =STDEV(L$15:L$44) -> 0.5 | M8: =L7+(2*L8) -> 24.75 | N8: 27 | P8: =STDEV(P$15:P$44) -> 2.217355783 | Q8: =P7+(2*P8) -> 32.68471157 | R8: 33 | T8: =STDEV(T$15:T$44) -> 0 | U8: =T7+(2*T8) -> 23 | V8: 26 | X8: =STDEV(X$15:X$44) -> 0 | Y8: =X7+(2*X8) -> 23 | Z8: 28
A9: CV% | D9: =D8/D7 -> 0.01680672269 | E9: =D7-(2*D8) -> 28.75 | F9: 25 | H9: =H8/H7 -> 0.01941747573 | I9: =H7-(2*H8) -> 24.75 | J9: 23 | L9: =L8/L7 -> 0.02105263158 | M9: =L7-(2*L8) -> 22.75 | N9: 21 | P9: =P8/P7 -> 0.07849047018 | Q9: =P7-(2*P8) -> 23.81528843 | R9: 27 | T9: =T8/T7 -> 0 | U9: =T7-(2*T8) -> 23 | V9: 20 | X9: =X8/X7 -> 0 | Y9: =X7-(2*X8) -> 23 | Z9: 20
C14: Initialer, Avvik, Komm. | E14: Avvik | F14: s30 | G14: RT | I14: Avvik | J14: s30 | K14: RT | M14: Avvik | N14: s30 | O14: RT | Q14: Avvik | R14: s30 | S14: RT | U14: Avvik | V14: s30 | W14: RT | Y14: Avvik | Z14: s30 | AA14: RT
A15: 2019-09-25 | B15: 1 | D15: 30 | E15: =(D15-$D$7)/$D$7 -> 0.008403361345 | F15: =IF((ABS(E15)>($D$9*3)),"AV",IF((ABS(E15)>($D$9*2)),"NB","")) ->  | H15: 26 | I15: =(H15-$H$7)/$H$7 -> 0.009708737864 | J15: =IF((ABS(I15)>($H$9*3)),"AV",IF((ABS(I15)>($H$9*2)),"NB","")) ->  | L15: 24 | M15: =(L15-$L$7)/$L$7 -> 0.01052631579 | N15: =IF((ABS(M15)>($L$9*3)),"AV",IF((ABS(M15)>($L$9*2)),"NB","")) ->  | P15: 29 | Q15: =(P15-$P$7)/$P$7 -> 0.02654867257 | R15: =IF((ABS(Q15)>($P$9*3)),"AV",IF((ABS(Q15)>($P$9*2)),"NB","")) ->  | T15: 23 | U15: =(T15-$T$7)/$T$7 -> 0 | V15: =IF((ABS(U15)>($T$9*3)),"AV",IF((ABS(U15)>($T$9*2)),"NB","")) ->  | X15: 23 | Y15: =(X15-$X$7)/$X$7 -> 0 | Z15: =IF((ABS(Y15)>($X$9*3)),"AV",IF((ABS(Y15)>($X$9*2)),"NB","")) ->  | AM15: =F$8 -> 33 | AN15: =F$9 -> 25 | AO15: =J$8 -> 29 | AP15: =J$9 -> 23 | AQ15: =N$8 -> 27 | AR15: =N$9 -> 21 | AS15: =R$8 -> 33 | AT15: =R$9 -> 27 | AU15: =V$8 -> 26 | AV15: =V$9 -> 20 | AW15: =Z$8 -> 28 | AX15: =Z$9 -> 20
A16: 2019-09-18 | B16: =1+B15 -> 2 | D16: 30 | E16: =(D16-$D$7)/$D$7 -> 0.008403361345 | F16: =IF((ABS(E16)>($D$9*3)),"AV",IF((ABS(E16)>($D$9*2)),"NB","")) ->  | H16: 26 | I16: =(H16-$H$7)/$H$7 -> 0.009708737864 | J16: =IF((ABS(I16)>($H$9*3)),"AV",IF((ABS(I16)>($H$9*2)),"NB","")) ->  | L16: 24 | M16: =(L16-$L$7)/$L$7 -> 0.01052631579 | N16: =IF((ABS(M16)>($L$9*3)),"AV",IF((ABS(M16)>($L$9*2)),"NB","")) ->  | P16: 25 | Q16: =(P16-$P$7)/$P$7 -> -0.1150442478 | R16: =IF((ABS(Q16)>($P$9*3)),"AV",IF((ABS(Q16)>($P$9*2)),"NB","")) ->  | T16: 23 | U16: =(T16-$T$7)/$T$7 -> 0 | V16: =IF((ABS(U16)>($T$9*3)),"AV",IF((ABS(U16)>($T$9*2)),"NB","")) ->  | X16: 23 | Y16: =(X16-$X$7)/$X$7 -> 0 | Z16: =IF((ABS(Y16)>($X$9*3)),"AV",IF((ABS(Y16)>($X$9*2)),"NB","")) ->  | AM16: =F$8 -> 33 | AN16: =F$9 -> 25 | AO16: =J$8 -> 29 | AP16: =J$9 -> 23 | AQ16: =N$8 -> 27 | AR16: =N$9 -> 21 | AS16: =R$8 -> 33 | AT16: =R$9 -> 27 | AU16: =V$8 -> 26 | AV16: =V$9 -> 20 | AW16: =Z$8 -> 28 | AX16: =Z$9 -> 20
A17: 2019-09-11 | B17: 3 | D17: 30 | E17: =(D17-$D$7)/$D$7 -> 0.008403361345 | F17: =IF((ABS(E17)>($D$9*3)),"AV",IF((ABS(E17)>($D$9*2)),"NB","")) ->  | H17: 26 | I17: =(H17-$H$7)/$H$7 -> 0.009708737864 | J17: =IF((ABS(I17)>($H$9*3)),"AV",IF((ABS(I17)>($H$9*2)),"NB","")) ->  | L17: 24 | M17: =(L17-$L$7)/$L$7 -> 0.01052631579 | N17: =IF((ABS(M17)>($L$9*3)),"AV",IF((ABS(M17)>($L$9*2)),"NB","")) ->  | P17: 29 | Q17: =(P17-$P$7)/$P$7 -> 0.02654867257 | R17: =IF((ABS(Q17)>($P$9*3)),"AV",IF((ABS(Q17)>($P$9*2)),"NB","")) ->  | T17: 23 | U17: =(T17-$T$7)/$T$7 -> 0 | V17: =IF((ABS(U17)>($T$9*3)),"AV",IF((ABS(U17)>($T$9*2)),"NB","")) ->  | X17: 23 | Y17: =(X17-$X$7)/$X$7 -> 0 | Z17: =IF((ABS(Y17)>($X$9*3)),"AV",IF((ABS(Y17)>($X$9*2)),"NB","")) ->  | AM17: =F$8 -> 33 | AN17: =F$9 -> 25 | AO17: =J$8 -> 29 | AP17: =J$9 -> 23 | AQ17: =N$8 -> 27 | AR17: =N$9 -> 21 | AS17: =R$8 -> 33 | AT17: =R$9 -> 27 | AU17: =V$8 -> 26 | AV17: =V$9 -> 20 | AW17: =Z$8 -> 28 | AX17: =Z$9 -> 20
A18: 2019-09-04 | B18: 4 | D18: 29 | E18: =(D18-$D$7)/$D$7 -> -0.02521008403 | F18: =IF((ABS(E18)>($D$9*3)),"AV",IF((ABS(E18)>($D$9*2)),"NB","")) ->  | H18: 25 | I18: =(H18-$H$7)/$H$7 -> -0.02912621359 | J18: =IF((ABS(I18)>($H$9*3)),"AV",IF((ABS(I18)>($H$9*2)),"NB","")) ->  | L18: 23 | M18: =(L18-$L$7)/$L$7 -> -0.03157894737 | N18: =IF((ABS(M18)>($L$9*3)),"AV",IF((ABS(M18)>($L$9*2)),"NB","")) ->  | P18: 30 | Q18: =(P18-$P$7)/$P$7 -> 0.06194690265 | R18: =IF((ABS(Q18)>($P$9*3)),"AV",IF((ABS(Q18)>($P$9*2)),"NB","")) ->  | T18: 23 | U18: =(T18-$T$7)/$T$7 -> 0 | V18: =IF((ABS(U18)>($T$9*3)),"AV",IF((ABS(U18)>($T$9*2)),"NB","")) ->  | X18: 23 | Y18: =(X18-$X$7)/$X$7 -> 0 | Z18: =IF((ABS(Y18)>($X$9*3)),"AV",IF((ABS(Y18)>($X$9*2)),"NB","")) ->  | AM18: =F$8 -> 33 | AN18: =F$9 -> 25 | AO18: =J$8 -> 29 | AP18: =J$9 -> 23 | AQ18: =N$8 -> 27 | AR18: =N$9 -> 21 | AS18: =R$8 -> 33 | AT18: =R$9 -> 27 | AU18: =V$8 -> 26 | AV18: =V$9 -> 20 | AW18: =Z$8 -> 28 | AX18: =Z$9 -> 20
AM19: =F$8 -> 33 | AN19: =F$9 -> 25 | AO19: =J$8 -> 29 | AP19: =J$9 -> 23 | AQ19: =N$8 -> 27 | AR19: =N$9 -> 21 | AS19: =R$8 -> 33 | AT19: =R$9 -> 27 | AU19: =V$8 -> 26 | AV19: =V$9 -> 20 | AW19: =Z$8 -> 28 | AX19: =Z$9 -> 20
AM20: =F$8 -> 33 | AN20: =F$9 -> 25 | AO20: =J$8 -> 29 | AP20: =J$9 -> 23 | AQ20: =N$8 -> 27 | AR20: =N$9 -> 21 | AS20: =R$8 -> 33 | AT20: =R$9 -> 27 | AU20: =V$8 -> 26 | AV20: =V$9 -> 20 | AW20: =Z$8 -> 28 | AX20: =Z$9 -> 20
AM21: =F$8 -> 33 | AN21: =F$9 -> 25 | AO21: =J$8 -> 29 | AP21: =J$9 -> 23 | AQ21: =N$8 -> 27 | AR21: =N$9 -> 21 | AS21: =R$8 -> 33 | AT21: =R$9 -> 27 | AU21: =V$8 -> 26 | AV21: =V$9 -> 20 | AW21: =Z$8 -> 28 | AX21: =Z$9 -> 20
AM22: =F$8 -> 33 | AN22: =F$9 -> 25 | AO22: =J$8 -> 29 | AP22: =J$9 -> 23 | AQ22: =N$8 -> 27 | AR22: =N$9 -> 21 | AS22: =R$8 -> 33 | AT22: =R$9 -> 27 | AU22: =V$8 -> 26 | AV22: =V$9 -> 20 | AW22: =Z$8 -> 28 | AX22: =Z$9 -> 20
AM23: =F$8 -> 33 | AN23: =F$9 -> 25 | AO23: =J$8 -> 29 | AP23: =J$9 -> 23 | AQ23: =N$8 -> 27 | AR23: =N$9 -> 21 | AS23: =R$8 -> 33 | AT23: =R$9 -> 27 | AU23: =V$8 -> 26 | AV23: =V$9 -> 20 | AW23: =Z$8 -> 28 | AX23: =Z$9 -> 20
AM24: =F$8 -> 33 | AN24: =F$9 -> 25 | AO24: =J$8 -> 29 | AP24: =J$9 -> 23 | AQ24: =N$8 -> 27 | AR24: =N$9 -> 21 | AS24: =R$8 -> 33 | AT24: =R$9 -> 27 | AU24: =V$8 -> 26 | AV24: =V$9 -> 20 | AW24: =Z$8 -> 28 | AX24: =Z$9 -> 20
AM25: =F$8 -> 33 | AN25: =F$9 -> 25 | AO25: =J$8 -> 29 | AP25: =J$9 -> 23 | AQ25: =N$8 -> 27 | AR25: =N$9 -> 21 | AS25: =R$8 -> 33 | AT25: =R$9 -> 27 | AU25: =V$8 -> 26 | AV25: =V$9 -> 20 | AW25: =Z$8 -> 28 | AX25: =Z$9 -> 20
AM26: =F$8 -> 33 | AN26: =F$9 -> 25 | AO26: =J$8 -> 29 | AP26: =J$9 -> 23 | AQ26: =N$8 -> 27 | AR26: =N$9 -> 21 | AS26: =R$8 -> 33 | AT26: =R$9 -> 27 | AU26: =V$8 -> 26 | AV26: =V$9 -> 20 | AW26: =Z$8 -> 28 | AX26: =Z$9 -> 20
AM27: =F$8 -> 33 | AN27: =F$9 -> 25 | AO27: =J$8 -> 29 | AP27: =J$9 -> 23 | AQ27: =N$8 -> 27 | AR27: =N$9 -> 21 | AS27: =R$8 -> 33 | AT27: =R$9 -> 27 | AU27: =V$8 -> 26 | AV27: =V$9 -> 20 | AW27: =Z$8 -> 28 | AX27: =Z$9 -> 20
AM28: =F$8 -> 33 | AN28: =F$9 -> 25 | AO28: =J$8 -> 29 | AP28: =J$9 -> 23 | AQ28: =N$8 -> 27 | AR28: =N$9 -> 21 | AS28: =R$8 -> 33 | AT28: =R$9 -> 27 | AU28: =V$8 -> 26 | AV28: =V$9 -> 20 | AW28: =Z$8 -> 28 | AX28: =Z$9 -> 20
AM29: =F$8 -> 33 | AN29: =F$9 -> 25 | AO29: =J$8 -> 29 | AP29: =J$9 -> 23 | AQ29: =N$8 -> 27 | AR29: =N$9 -> 21 | AS29: =R$8 -> 33 | AT29: =R$9 -> 27 | AU29: =V$8 -> 26 | AV29: =V$9 -> 20 | AW29: =Z$8 -> 28 | AX29: =Z$9 -> 20
AM30: =F$8 -> 33 | AN30: =F$9 -> 25 | AO30: =J$8 -> 29 | AP30: =J$9 -> 23 | AQ30: =N$8 -> 27 | AR30: =N$9 -> 21 | AS30: =R$8 -> 33 | AT30: =R$9 -> 27 | AU30: =V$8 -> 26 | AV30: =V$9 -> 20 | AW30: =Z$8 -> 28 | AX30: =Z$9 -> 20
AM31: =F$8 -> 33 | AN31: =F$9 -> 25 | AO31: =J$8 -> 29 | AP31: =J$9 -> 23 | AQ31: =N$8 -> 27 | AR31: =N$9 -> 21 | AS31: =R$8 -> 33 | AT31: =R$9 -> 27 | AU31: =V$8 -> 26 | AV31: =V$9 -> 20 | AW31: =Z$8 -> 28 | AX31: =Z$9 -> 20
AM32: =F$8 -> 33 | AN32: =F$9 -> 25 | AO32: =J$8 -> 29 | AP32: =J$9 -> 23 | AQ32: =N$8 -> 27 | AR32: =N$9 -> 21 | AS32: =R$8 -> 33 | AT32: =R$9 -> 27 | AU32: =V$8 -> 26 | AV32: =V$9 -> 20 | AW32: =Z$8 -> 28 | AX32: =Z$9 -> 20
AM33: =F$8 -> 33 | AN33: =F$9 -> 25 | AO33: =J$8 -> 29 | AP33: =J$9 -> 23 | AQ33: =N$8 -> 27 | AR33: =N$9 -> 21 | AS33: =R$8 -> 33 | AT33: =R$9 -> 27 | AU33: =V$8 -> 26 | AV33: =V$9 -> 20 | AW33: =Z$8 -> 28 | AX33: =Z$9 -> 20
AM34: =F$8 -> 33 | AN34: =F$9 -> 25 | AO34: =J$8 -> 29 | AP34: =J$9 -> 23 | AQ34: =N$8 -> 27 | AR34: =N$9 -> 21 | AS34: =R$8 -> 33 | AT34: =R$9 -> 27 | AU34: =V$8 -> 26 | AV34: =V$9 -> 20 | AW34: =Z$8 -> 28 | AX34: =Z$9 -> 20
AM35: =F$8 -> 33 | AN35: =F$9 -> 25 | AO35: =J$8 -> 29 | AP35: =J$9 -> 23 | AQ35: =N$8 -> 27 | AR35: =N$9 -> 21 | AS35: =R$8 -> 33 | AT35: =R$9 -> 27 | AU35: =V$8 -> 26 | AV35: =V$9 -> 20 | AW35: =Z$8 -> 28 | AX35: =Z$9 -> 20
AM36: =F$8 -> 33 | AN36: =F$9 -> 25 | AO36: =J$8 -> 29 | AP36: =J$9 -> 23 | AQ36: =N$8 -> 27 | AR36: =N$9 -> 21 | AS36: =R$8 -> 33 | AT36: =R$9 -> 27 | AU36: =V$8 -> 26 | AV36: =V$9 -> 20 | AW36: =Z$8 -> 28 | AX36: =Z$9 -> 20
AM37: =F$8 -> 33 | AN37: =F$9 -> 25 | AO37: =J$8 -> 29 | AP37: =J$9 -> 23 | AQ37: =N$8 -> 27 | AR37: =N$9 -> 21 | AS37: =R$8 -> 33 | AT37: =R$9 -> 27 | AU37: =V$8 -> 26 | AV37: =V$9 -> 20 | AW37: =Z$8 -> 28 | AX37: =Z$9 -> 20
AM38: =F$8 -> 33 | AN38: =F$9 -> 25 | AO38: =J$8 -> 29 | AP38: =J$9 -> 23 | AQ38: =N$8 -> 27 | AR38: =N$9 -> 21 | AS38: =R$8 -> 33 | AT38: =R$9 -> 27 | AU38: =V$8 -> 26 | AV38: =V$9 -> 20 | AW38: =Z$8 -> 28 | AX38: =Z$9 -> 20
AM39: =F$8 -> 33 | AN39: =F$9 -> 25 | AO39: =J$8 -> 29 | AP39: =J$9 -> 23 | AQ39: =N$8 -> 27 | AR39: =N$9 -> 21 | AS39: =R$8 -> 33 | AT39: =R$9 -> 27 | AU39: =V$8 -> 26 | AV39: =V$9 -> 20 | AW39: =Z$8 -> 28 | AX39: =Z$9 -> 20
AM40: =F$8 -> 33 | AN40: =F$9 -> 25 | AO40: =J$8 -> 29 | AP40: =J$9 -> 23 | AQ40: =N$8 -> 27 | AR40: =N$9 -> 21 | AS40: =R$8 -> 33 | AT40: =R$9 -> 27 | AU40: =V$8 -> 26 | AV40: =V$9 -> 20 | AW40: =Z$8 -> 28 | AX40: =Z$9 -> 20
AM41: =F$8 -> 33 | AN41: =F$9 -> 25 | AO41: =J$8 -> 29 | AP41: =J$9 -> 23 | AQ41: =N$8 -> 27 | AR41: =N$9 -> 21 | AS41: =R$8 -> 33 | AT41: =R$9 -> 27 | AU41: =V$8 -> 26 | AV41: =V$9 -> 20 | AW41: =Z$8 -> 28 | AX41: =Z$9 -> 20
AM42: =F$8 -> 33 | AN42: =F$9 -> 25 | AO42: =J$8 -> 29 | AP42: =J$9 -> 23 | AQ42: =N$8 -> 27 | AR42: =N$9 -> 21 | AS42: =R$8 -> 33 | AT42: =R$9 -> 27 | AU42: =V$8 -> 26 | AV42: =V$9 -> 20 | AW42: =Z$8 -> 28 | AX42: =Z$9 -> 20
AM43: =F$8 -> 33 | AN43: =F$9 -> 25 | AO43: =J$8 -> 29 | AP43: =J$9 -> 23 | AQ43: =N$8 -> 27 | AR43: =N$9 -> 21 | AS43: =R$8 -> 33 | AT43: =R$9 -> 27 | AU43: =V$8 -> 26 | AV43: =V$9 -> 20 | AW43: =Z$8 -> 28 | AX43: =Z$9 -> 20
AM44: =F$8 -> 33 | AN44: =F$9 -> 25 | AO44: =J$8 -> 29 | AP44: =J$9 -> 23 | AQ44: =N$8 -> 27 | AR44: =N$9 -> 21 | AS44: =R$8 -> 33 | AT44: =R$9 -> 27 | AU44: =V$8 -> 26 | AV44: =V$9 -> 20 | AW44: =Z$8 -> 28 | AX44: =Z$9 -> 20

Sheet STREP
A1: Pneumokokker (STREP)
A2: 2019-10-01 | D2: PA Jenum
A3: Registrér etter at måleverdiene er lagt inn
A5: Ukentlig | D5: Streptococcus pneumoniae ATCC 49619 | AM5: =E6 -> E 15 | AO5: =I6 -> DA 2 | AQ5: =M6 -> SXT 25 | AS5: =Q6 -> TE 30 | AU5: =U6 -> OX 1
A6: Dato | B6: Nr | D6: Erytromycin 15 | E6: E 15 | F6: Sonegrenser | G6: Target | H6: Clindamycin 2 | I6: DA 2 | J6: Sonegrenser | K6: Target | L6: Trimetoprim-sulfa | M6: SXT 25 | N6: Sonegrenser | O6: Target | P6: Tetracyklin 30 | Q6: TE 30 | R6: Sonegrenser | S6: Target | T6: Oxacillin 1 | U6: OX 1 | V6: Sonegrenser | W6: Target | AM6: Øvre | AN6: Nedre | AO6: Øvre | AP6: Nedre | AQ6: Øvre | AR6: Nedre | AS6: Øvre | AT6: Nedre | AU6: Øvre | AV6: Nedre
A7: Snitt | B7: Siste 30 | D7: =AVERAGE(D$15:D$44) -> 27 | E7: +-2SD | F7: =IF(F8="","",IF(D7>(3+((F8+F9)/2)),"NB",IF(D7<(-3+((F8+F9)/2)),"NB","OK"))) -> OK | G7: 29 | H7: =AVERAGE(H$15:H$44) -> 23.5 | I7: +-2SD | J7: =IF(J8="","",IF(H7>(3+((J8+J9)/2)),"NB",IF(H7<(-3+((J8+J9)/2)),"NB","OK"))) -> OK | K7: 25 | L7: =AVERAGE(L$15:L$44) -> 23.25 | M7: +-2SD | N7: =IF(N8="","",IF(L7>(3+((N8+N9)/2)),"NB",IF(L7<(-3+((N8+N9)/2)),"NB","OK"))) -> OK | O7: 22 | P7: =AVERAGE(P$15:P$44) -> 29.5 | Q7: +-2SD | R7: =IF(R8="","",IF(P7>(3+((R8+R9)/2)),"NB",IF(P7<(-3+((R8+R9)/2)),"NB","OK"))) -> OK | S7: 31 | T7: =AVERAGE(T$15:T$44) -> 11.5 | U7: +-2SD | V7: =IF(V8="","",IF(T7>(3+((V8+V9)/2)),"NB",IF(T7<(-3+((V8+V9)/2)),"NB","OK"))) -> OK | W7: 11
A8: SD | B8: Siste 30 | D8: =STDEV(D$15:D$44) -> 0.8164965809 | E8: =D7+(2*D8) -> 28.63299316 | F8: 32 | H8: =STDEV(H$15:H$44) -> 0.5773502692 | I8: =H7+(2*H8) -> 24.65470054 | J8: 28 | L8: =STDEV(L$15:L$44) -> 0.9574271078 | M8: =L7+(2*L8) -> 25.16485422 | N8: 26 | P8: =STDEV(P$15:P$44) -> 0.5773502692 | Q8: =P7+(2*P8) -> 30.65470054 | R8: 34 | T8: =STDEV(T$15:T$44) -> 0.5773502692 | U8: =T7+(2*T8) -> 12.65470054 | V8: 14
A9: CV% | D9: =D8/D7 -> 0.03024061411 | E9: =D7-(2*D8) -> 25.36700684 | F9: 26 | H9: =H8/H7 -> 0.02456809656 | I9: =H7-(2*H8) -> 22.34529946 | J9: 22 | L9: =L8/L7 -> 0.04117966055 | M9: =L7-(2*L8) -> 21.33514578 | N9: 18 | P9: =P8/P7 -> 0.01957119557 | Q9: =P7-(2*P8) -> 28.34529946 | R9: 28 | T9: =T8/T7 -> 0.05020437123 | U9: =T7-(2*T8) -> 10.34529946 | V9: 8
A12: Legg inn diameter i hele millimeter i fargede felt i Rad 13
C14: Initialer, Avvik, Komm. | E14: Avvik | F14: s30 | G14: RT | I14: Avvik | J14: s30 | K14: RT | M14: Avvik | N14: s30 | O14: RT | Q14: Avvik | R14: s30 | S14: RT | U14: Avvik | V14: s30 | W14: RT
A15: 2019-09-25 | B15: 1 | D15: 28 | E15: =(D15-$D$7)/$D$7 -> 0.03703703704 | F15: =IF((ABS(E15)>($D$9*3)),"AV",IF((ABS(E15)>($D$9*2)),"NB","")) ->  | H15: 24 | I15: =(H15-$H$7)/$H$7 -> 0.02127659574 | J15: =IF((ABS(I15)>($H$9*3)),"AV",IF((ABS(I15)>($H$9*2)),"NB","")) ->  | L15: 24 | M15: =(L15-$L$7)/$L$7 -> 0.03225806452 | N15: =IF((ABS(M15)>($L$9*3)),"AV",IF((ABS(M15)>($L$9*2)),"NB","")) ->  | P15: 30 | Q15: =(P15-$P$7)/$P$7 -> 0.01694915254 | R15: =IF((ABS(Q15)>($P$9*3)),"AV",IF((ABS(Q15)>($P$9*2)),"NB","")) ->  | T15: 11 | U15: =IF(T15=0,"",((T15-$T$7)/$T$7)) -> -0.04347826087 | V15: =IF(U15="","",(IF((ABS(U15)>($T$9*3)),"AV",IF((ABS(U15)>($T$9*2)),"NB","")))) ->  | AM15: =F$8 -> 32 | AN15: =F$9 -> 26 | AO15: =J$8 -> 28 | AP15: =J$9 -> 22 | AQ15: =N$8 -> 26 | AR15: =N$9 -> 18 | AS15: =R$8 -> 34 | AT15: =R$9 -> 28 | AU15: =V$8 -> 14 | AV15: =V$9 -> 8
A16: 2019-09-19 | B16: =B15+1 -> 2 | D16: 27 | E16: =(D16-$D$7)/$D$7 -> 0 | F16: =IF((ABS(E16)>($D$9*3)),"AV",IF((ABS(E16)>($D$9*2)),"NB","")) ->  | H16: 23 | I16: =(H16-$H$7)/$H$7 -> -0.02127659574 | J16: =IF((ABS(I16)>($H$9*3)),"AV",IF((ABS(I16)>($H$9*2)),"NB","")) ->  | L16: 24 | M16: =(L16-$L$7)/$L$7 -> 0.03225806452 | N16: =IF((ABS(M16)>($L$9*3)),"AV",IF((ABS(M16)>($L$9*2)),"NB","")) ->  | P16: 29 | Q16: =(P16-$P$7)/$P$7 -> -0.01694915254 | R16: =IF((ABS(Q16)>($P$9*3)),"AV",IF((ABS(Q16)>($P$9*2)),"NB","")) ->  | T16: 11 | U16: =IF(T16=0,"",((T16-$T$7)/$T$7)) -> -0.04347826087 | V16: =IF(U16="","",(IF((ABS(U16)>($T$9*3)),"AV",IF((ABS(U16)>($T$9*2)),"NB","")))) ->  | AM16: =F$8 -> 32 | AN16: =F$9 -> 26 | AO16: =J$8 -> 28 | AP16: =J$9 -> 22 | AQ16: =N$8 -> 26 | AR16: =N$9 -> 18 | AS16: =R$8 -> 34 | AT16: =R$9 -> 28 | AU16: =V$8 -> 14 | AV16: =V$9 -> 8
A17: 2019-09-04 | B17: 3 | D17: 27 | E17: =(D17-$D$7)/$D$7 -> 0 | F17: =IF((ABS(E17)>($D$9*3)),"AV",IF((ABS(E17)>($D$9*2)),"NB","")) ->  | H17: 24 | I17: =(H17-$H$7)/$H$7 -> 0.02127659574 | J17: =IF((ABS(I17)>($H$9*3)),"AV",IF((ABS(I17)>($H$9*2)),"NB","")) ->  | L17: 23 | M17: =(L17-$L$7)/$L$7 -> -0.01075268817 | N17: =IF((ABS(M17)>($L$9*3)),"AV",IF((ABS(M17)>($L$9*2)),"NB","")) ->  | P17: 30 | Q17: =(P17-$P$7)/$P$7 -> 0.01694915254 | R17: =IF((ABS(Q17)>($P$9*3)),"AV",IF((ABS(Q17)>($P$9*2)),"NB","")) ->  | T17: 12 | U17: =IF(T17=0,"",((T17-$T$7)/$T$7)) -> 0.04347826087 | V17: =IF(U17="","",(IF((ABS(U17)>($T$9*3)),"AV",IF((ABS(U17)>($T$9*2)),"NB","")))) ->  | AM17: =F$8 -> 32 | AN17: =F$9 -> 26 | AO17: =J$8 -> 28 | AP17: =J$9 -> 22 | AQ17: =N$8 -> 26 | AR17: =N$9 -> 18 | AS17: =R$8 -> 34 | AT17: =R$9 -> 28 | AU17: =V$8 -> 14 | AV17: =V$9 -> 8
A18: 2019-08-28 | B18: 4 | D18: 26 | E18: =(D18-$D$7)/$D$7 -> -0.03703703704 | F18: =IF((ABS(E18)>($D$9*3)),"AV",IF((ABS(E18)>($D$9*2)),"NB","")) ->  | H18: 23 | I18: =(H18-$H$7)/$H$7 -> -0.02127659574 | J18: =IF((ABS(I18)>($H$9*3)),"AV",IF((ABS(I18)>($H$9*2)),"NB","")) ->  | L18: 22 | M18: =(L18-$L$7)/$L$7 -> -0.05376344086 | N18: =IF((ABS(M18)>($L$9*3)),"AV",IF((ABS(M18)>($L$9*2)),"NB","")) ->  | P18: 29 | Q18: =(P18-$P$7)/$P$7 -> -0.01694915254 | R18: =IF((ABS(Q18)>($P$9*3)),"AV",IF((ABS(Q18)>($P$9*2)),"NB","")) ->  | T18: 12 | U18: =IF(T18=0,"",((T18-$T$7)/$T$7)) -> 0.04347826087 | V18: =IF(U18="","",(IF((ABS(U18)>($T$9*3)),"AV",IF((ABS(U18)>($T$9*2)),"NB","")))) ->  | AM18: =F$8 -> 32 | AN18: =F$9 -> 26 | AO18: =J$8 -> 28 | AP18: =J$9 -> 22 | AQ18: =N$8 -> 26 | AR18: =N$9 -> 18 | AS18: =R$8 -> 34 | AT18: =R$9 -> 28 | AU18: =V$8 -> 14 | AV18: =V$9 -> 8
AM19: =F$8 -> 32 | AN19: =F$9 -> 26 | AO19: =J$8 -> 28 | AP19: =J$9 -> 22 | AQ19: =N$8 -> 26 | AR19: =N$9 -> 18 | AS19: =R$8 -> 34 | AT19: =R$9 -> 28 | AU19: =V$8 -> 14 | AV19: =V$9 -> 8
AM20: =F$8 -> 32 | AN20: =F$9 -> 26 | AO20: =J$8 -> 28 | AP20: =J$9 -> 22 | AQ20: =N$8 -> 26 | AR20: =N$9 -> 18 | AS20: =R$8 -> 34 | AT20: =R$9 -> 28 | AU20: =V$8 -> 14 | AV20: =V$9 -> 8
AM21: =F$8 -> 32 | AN21: =F$9 -> 26 | AO21: =J$8 -> 28 | AP21: =J$9 -> 22 | AQ21: =N$8 -> 26 | AR21: =N$9 -> 18 | AS21: =R$8 -> 34 | AT21: =R$9 -> 28 | AU21: =V$8 -> 14 | AV21: =V$9 -> 8
AM22: =F$8 -> 32 | AN22: =F$9 -> 26 | AO22: =J$8 -> 28 | AP22: =J$9 -> 22 | AQ22: =N$8 -> 26 | AR22: =N$9 -> 18 | AS22: =R$8 -> 34 | AT22: =R$9 -> 28 | AU22: =V$8 -> 14 | AV22: =V$9 -> 8
AM23: =F$8 -> 32 | AN23: =F$9 -> 26 | AO23: =J$8 -> 28 | AP23: =J$9 -> 22 | AQ23: =N$8 -> 26 | AR23: =N$9 -> 18 | AS23: =R$8 -> 34 | AT23: =R$9 -> 28 | AU23: =V$8 -> 14 | AV23: =V$9 -> 8
AM24: =F$8 -> 32 | AN24: =F$9 -> 26 | AO24: =J$8 -> 28 | AP24: =J$9 -> 22 | AQ24: =N$8 -> 26 | AR24: =N$9 -> 18 | AS24: =R$8 -> 34 | AT24: =R$9 -> 28 | AU24: =V$8 -> 14 | AV24: =V$9 -> 8
AM25: =F$8 -> 32 | AN25: =F$9 -> 26 | AO25: =J$8 -> 28 | AP25: =J$9 -> 22 | AQ25: =N$8 -> 26 | AR25: =N$9 -> 18 | AS25: =R$8 -> 34 | AT25: =R$9 -> 28 | AU25: =V$8 -> 14 | AV25: =V$9 -> 8
AM26: =F$8 -> 32 | AN26: =F$9 -> 26 | AO26: =J$8 -> 28 | AP26: =J$9 -> 22 | AQ26: =N$8 -> 26 | AR26: =N$9 -> 18 | AS26: =R$8 -> 34 | AT26: =R$9 -> 28 | AU26: =V$8 -> 14 | AV26: =V$9 -> 8
AM27: =F$8 -> 32 | AN27: =F$9 -> 26 | AO27: =J$8 -> 28 | AP27: =J$9 -> 22 | AQ27: =N$8 -> 26 | AR27: =N$9 -> 18 | AS27: =R$8 -> 34 | AT27: =R$9 -> 28 | AU27: =V$8 -> 14 | AV27: =V$9 -> 8
AM28: =F$8 -> 32 | AN28: =F$9 -> 26 | AO28: =J$8 -> 28 | AP28: =J$9 -> 22 | AQ28: =N$8 -> 26 | AR28: =N$9 -> 18 | AS28: =R$8 -> 34 | AT28: =R$9 -> 28 | AU28: =V$8 -> 14 | AV28: =V$9 -> 8
AM29: =F$8 -> 32 | AN29: =F$9 -> 26 | AO29: =J$8 -> 28 | AP29: =J$9 -> 22 | AQ29: =N$8 -> 26 | AR29: =N$9 -> 18 | AS29: =R$8 -> 34 | AT29: =R$9 -> 28 | AU29: =V$8 -> 14 | AV29: =V$9 -> 8
AM30: =F$8 -> 32 | AN30: =F$9 -> 26 | AO30: =J$8 -> 28 | AP30: =J$9 -> 22 | AQ30: =N$8 -> 26 | AR30: =N$9 -> 18 | AS30: =R$8 -> 34 | AT30: =R$9 -> 28 | AU30: =V$8 -> 14 | AV30: =V$9 -> 8
AM31: =F$8 -> 32 | AN31: =F$9 -> 26 | AO31: =J$8 -> 28 | AP31: =J$9 -> 22 | AQ31: =N$8 -> 26 | AR31: =N$9 -> 18 | AS31: =R$8 -> 34 | AT31: =R$9 -> 28 | AU31: =V$8 -> 14 | AV31: =V$9 -> 8
AM32: =F$8 -> 32 | AN32: =F$9 -> 26 | AO32: =J$8 -> 28 | AP32: =J$9 -> 22 | AQ32: =N$8 -> 26 | AR32: =N$9 -> 18 | AS32: =R$8 -> 34 | AT32: =R$9 -> 28 | AU32: =V$8 -> 14 | AV32: =V$9 -> 8
AM33: =F$8 -> 32 | AN33: =F$9 -> 26 | AO33: =J$8 -> 28 | AP33: =J$9 -> 22 | AQ33: =N$8 -> 26 | AR33: =N$9 -> 18 | AS33: =R$8 -> 34 | AT33: =R$9 -> 28 | AU33: =V$8 -> 14 | AV33: =V$9 -> 8
AM34: =F$8 -> 32 | AN34: =F$9 -> 26 | AO34: =J$8 -> 28 | AP34: =J$9 -> 22 | AQ34: =N$8 -> 26 | AR34: =N$9 -> 18 | AS34: =R$8 -> 34 | AT34: =R$9 -> 28 | AU34: =V$8 -> 14 | AV34: =V$9 -> 8
AM35: =F$8 -> 32 | AN35: =F$9 -> 26 | AO35: =J$8 -> 28 | AP35: =J$9 -> 22 | AQ35: =N$8 -> 26 | AR35: =N$9 -> 18 | AS35: =R$8 -> 34 | AT35: =R$9 -> 28 | AU35: =V$8 -> 14 | AV35: =V$9 -> 8
AM36: =F$8 -> 32 | AN36: =F$9 -> 26 | AO36: =J$8 -> 28 | AP36: =J$9 -> 22 | AQ36: =N$8 -> 26 | AR36: =N$9 -> 18 | AS36: =R$8 -> 34 | AT36: =R$9 -> 28 | AU36: =V$8 -> 14 | AV36: =V$9 -> 8
AM37: =F$8 -> 32 | AN37: =F$9 -> 26 | AO37: =J$8 -> 28 | AP37: =J$9 -> 22 | AQ37: =N$8 -> 26 | AR37: =N$9 -> 18 | AS37: =R$8 -> 34 | AT37: =R$9 -> 28 | AU37: =V$8 -> 14 | AV37: =V$9 -> 8
AM38: =F$8 -> 32 | AN38: =F$9 -> 26 | AO38: =J$8 -> 28 | AP38: =J$9 -> 22 | AQ38: =N$8 -> 26 | AR38: =N$9 -> 18 | AS38: =R$8 -> 34 | AT38: =R$9 -> 28 | AU38: =V$8 -> 14 | AV38: =V$9 -> 8
AM39: =F$8 -> 32 | AN39: =F$9 -> 26 | AO39: =J$8 -> 28 | AP39: =J$9 -> 22 | AQ39: =N$8 -> 26 | AR39: =N$9 -> 18 | AS39: =R$8 -> 34 | AT39: =R$9 -> 28 | AU39: =V$8 -> 14 | AV39: =V$9 -> 8
AM40: =F$8 -> 32 | AN40: =F$9 -> 26 | AO40: =J$8 -> 28 | AP40: =J$9 -> 22 | AQ40: =N$8 -> 26 | AR40: =N$9 -> 18 | AS40: =R$8 -> 34 | AT40: =R$9 -> 28 | AU40: =V$8 -> 14 | AV40: =V$9 -> 8
AM41: =F$8 -> 32 | AN41: =F$9 -> 26 | AO41: =J$8 -> 28 | AP41: =J$9 -> 22 | AQ41: =N$8 -> 26 | AR41: =N$9 -> 18 | AS41: =R$8 -> 34 | AT41: =R$9 -> 28 | AU41: =V$8 -> 14 | AV41: =V$9 -> 8
AM42: =F$8 -> 32 | AN42: =F$9 -> 26 | AO42: =J$8 -> 28 | AP42: =J$9 -> 22 | AQ42: =N$8 -> 26 | AR42: =N$9 -> 18 | AS42: =R$8 -> 34 | AT42: =R$9 -> 28 | AU42: =V$8 -> 14 | AV42: =V$9 -> 8
AM43: =F$8 -> 32 | AN43: =F$9 -> 26 | AO43: =J$8 -> 28 | AP43: =J$9 -> 22 | AQ43: =N$8 -> 26 | AR43: =N$9 -> 18 | AS43: =R$8 -> 34 | AT43: =R$9 -> 28 | AU43: =V$8 -> 14 | AV43: =V$9 -> 8
AM44: =F$8 -> 32 | AN44: =F$9 -> 26 | AO44: =J$8 -> 28 | AP44: =J$9 -> 22 | AQ44: =N$8 -> 26 | AR44: =N$9 -> 18 | AS44: =R$8 -> 34 | AT44: =R$9 -> 28 | AU44: =V$8 -> 14 | AV44: =V$9 -> 8

Sheet STAPH
A1: Stafylokokker (STAPH)
A2: 2019-10-01 | D2: PA Jenum
A3: Registrér etter at måleverdiene er lagt inn
A5: Ukentlig | D5: S.aureus ATCC 29213 | BI5: =E6 -> E 15 | BK5: =I6 -> DA 2 | BM5: =M6 -> FOX 30 | BO5: =Q6 -> CN 10 | BQ5: =U6 -> LZD 10 | BS5: =Y6 -> P 1 | BU5: FD 10 | BW5: MUP 200 | BY5: RD 5
A6: Dato | B6: Nr | D6: Erytromycin 15 | E6: E 15 | F6: Sonegrenser | G6: Target | H6: Clindamycin 2 | I6: DA 2 | J6: Sonegrenser | K6: Target | L6: Cefoxitin 30 | M6: FOX 30 | N6: Sonegrenser | O6: Target | P6: Gentamicin 10 | Q6: CN 10 | R6: Sonegrenser | S6: Target | T6: Linezolid 10 | U6: LZD 10 | V6: Sonegrenser | W6: Target | X6: Penicillin 1 U | Y6: P 1 | Z6: Sonegrenser | AA6: Target | AB6: Fucidin 10 | AC6: FD 10 | AD6: Sonegrenser | AE6: Target | AF6: Mupirocin 200 | AG6: MUP 200 | AH6: Sonegrenser | AI6: Target | AJ6: Rifampicin 5 | AK6: RD 5 | AL6: Sonegrenser | AM6: Target | BI6: Øvre | BJ6: Nedre | BK6: Øvre | BL6: Nedre | BM6: Øvre | BN6: Nedre | BO6: Øvre | BP6: Nedre | BQ6: Øvre | BR6: Nedre | BS6: Øvre | BT6: Nedre | BU6: Øvre | BV6: Nedre | BW6: Øvre | BX6: Nedre | BY6: Øvre | BZ6: Nedre
A7: Snitt | B7: Siste 30 | D7: =AVERAGE(D$15:D$44) -> 25.5 | E7: +-2SD | F7: =IF(F8="","",IF(D7>(3+((F8+F9)/2)),"NB",IF(D7<(-3+((F8+F9)/2)),"NB","OK"))) -> OK | G7: 26 | H7: =AVERAGE(H$15:H$44) -> 25.5 | I7: +-2SD | J7: =IF(J8="","",IF(H7>(3+((J8+J9)/2)),"NB",IF(H7<(-3+((J8+J9)/2)),"NB","OK"))) -> OK | K7: 26 | L7: =AVERAGE(L$15:L$44) -> 27.75 | M7: +-2SD | N7: =IF(N8="","",IF(L7>(3+((N8+N9)/2)),"NB",IF(L7<(-3+((N8+N9)/2)),"NB","OK"))) -> OK | O7: 27 | P7: =AVERAGE(P$15:P$44) -> 21.75 | Q7: +-2SD | R7: =IF(R8="","",IF(P7>(3+((R8+R9)/2)),"NB",IF(P7<(-3+((R8+R9)/2)),"NB","OK"))) -> OK | S7: 22 | T7: =AVERAGE(T$15:T$44) -> 24 | U7: +-2SD | V7: =IF(V8="","",IF(T7>(3+((V8+V9)/2)),"NB",IF(T7<(-3+((V8+V9)/2)),"NB","OK"))) -> OK | W7: 24 | X7: =AVERAGE(X$15:X$44) -> 13.75 | Y7: +-2SD | Z7: =IF(Z8="","",IF(X7>(3+((Z8+Z9)/2)),"NB",IF(X7<(-3+((Z8+Z9)/2)),"NB","OK"))) -> OK | AA7: 15 | AB7: =AVERAGE(AB$15:AB$44) -> 28.25 | AC7: +-2SD | AD7: =IF(AD8="","",IF(AB7>(3+((AD8+AD9)/2)),"NB",IF(AB7<(-3+((AD8+AD9)/2)),"NB","OK"))) -> OK | AE7: 29 | AF7: =AVERAGE(AF$15:AF$44) -> 32 | AG7: +-2SD | AH7: =IF(AH8="","",IF(AF7>(3+((AH8+AH9)/2)),"NB",IF(AF7<(-3+((AH8+AH9)/2)),"NB","OK"))) -> OK | AI7: 34 | AJ7: =AVERAGE(AJ$15:AJ$44) -> 31.25 | AK7: +-2SD | AL7: =IF(AL8="","",IF(AJ7>(3+((AL8+AL9)/2)),"NB",IF(AJ7<(-3+((AL8+AL9)/2)),"NB","OK"))) -> OK | AM7: 33 | BI7: =F$8 -> 29 | BJ7: =F$9 -> 23 | BK7: =J$8 -> 29 | BL7: =J$9 -> 23 | BM7: =N$8 -> 30 | BN7: =N$9 -> 24 | BO7: =R$8 -> 25 | BP7: =R$9 -> 19 | BQ7: =V$8 -> 27 | BR7: =V$9 -> 21 | BS7: =Z$8 -> 18 | BT7: =Z$9 -> 12 | BU7: =AD$8 -> 32 | BV7: =AD$9 -> 26 | BW7: =AH$8 -> 37 | BX7: =AH$9 -> 31 | BY7: =AL$8 -> 36 | BZ7: =AL$9 -> 30
A8: SD | B8: Siste 30 | D8: =STDEV(D$15:D$44) -> 0.5773502692 | E8: =D7+(2*D8) -> 26.65470054 | F8: 29 | H8: =STDEV(H$15:H$44) -> 0.5773502692 | I8: =H7+(2*H8) -> 26.65470054 | J8: 29 | L8: =STDEV(L$15:L$44) -> 0.5 | M8: =L7+(2*L8) -> 28.75 | N8: 30 | P8: =STDEV(P$15:P$44) -> 0.5 | Q8: =P7+(2*P8) -> 22.75 | R8: 25 | T8: =STDEV(T$15:T$44) -> 0 | U8: =T7+(2*T8) -> 24 | V8: 27 | X8: =STDEV(X$15:X$44) -> 0.5 | Y8: =X7+(2*X8) -> 14.75 | Z8: 18 | AB8: =STDEV(AB$15:AB$44) -> 0.5 | AC8: =AB7+(2*AB8) -> 29.25 | AD8: 32 | AF8: =STDEV(AF$15:AF$44) -> 0 | AG8: =AF7+(2*AF8) -> 32 | AH8: 37 | AJ8: =STDEV(AJ$15:AJ$44) -> 0.5 | AK8: =AJ7+(2*AJ8) -> 32.25 | AL8: 36 | BI8: 29 | BJ8: 23 | BK8: 29 | BL8: 23 | BM8: 30 | BN8: 24 | BO8: 25 | BP8: 19 | BQ8: 27 | BR8: 21 | BS8: 18 | BT8: 12 | BU8: 32 | BV8: 26 | BW8: 37 | BX8: 31 | BY8: 36 | BZ8: 30
A9: CV% | D9: =D8/D7 -> 0.02264118703 | E9: =D7-(2*D8) -> 24.34529946 | F9: 23 | H9: =H8/H7 -> 0.02264118703 | I9: =H7-(2*H8) -> 24.34529946 | J9: 23 | L9: =L8/L7 -> 0.01801801802 | M9: =L7-(2*L8) -> 26.75 | N9: 24 | P9: =P8/P7 -> 0.02298850575 | Q9: =P7-(2*P8) -> 20.75 | R9: 19 | T9: =T8/T7 -> 0 | U9: =T7-(2*T8) -> 24 | V9: 21 | X9: =X8/X7 -> 0.03636363636 | Y9: =X7-(2*X8) -> 12.75 | Z9: 12 | AB9: =AB8/AB7 -> 0.01769911504 | AC9: =AB7-(2*AB8) -> 27.25 | AD9: 26 | AF9: =AF8/AF7 -> 0 | AG9: =AF7-(2*AF8) -> 32 | AH9: 31 | AJ9: =AJ8/AJ7 -> 0.016 | AK9: =AJ7-(2*AJ8) -> 30.25 | AL9: 30 | BI9: 29 | BJ9: 23 | BK9: 29 | BL9: 23 | BM9: 30 | BN9: 24 | BO9: 25 | BP9: 19 | BQ9: 27 | BR9: 21 | BS9: 18 | BT9: 12 | BU9: 32 | BV9: 26 | BW9: 37 | BX9: 31 | BY9: 36 | BZ9: 30
BI10: 29 | BJ10: 23 | BK10: 29 | BL10: 23 | BM10: 30 | BN10: 24 | BO10: 25 | BP10: 19 | BQ10: 27 | BR10: 21 | BS10: 18 | BT10: 12 | BU10: 32 | BV10: 26 | BW10: 37 | BX10: 31 | BY10: 36 | BZ10: 30
BI11: 29 | BJ11: 23 | BK11: 29 | BL11: 23 | BM11: 30 | BN11: 24 | BO11: 25 | BP11: 19 | BQ11: 27 | BR11: 21 | BS11: 18 | BT11: 12 | BU11: 32 | BV11: 26 | BW11: 37 | BX11: 31 | BY11: 36 | BZ11: 30
A12: Legg inn diameter i hele millimeter i fargede felt i Rad 13 | BI12: 29 | BJ12: 23 | BK12: 29 | BL12: 23 | BM12: 30 | BN12: 24 | BO12: 25 | BP12: 19 | BQ12: 27 | BR12: 21 | BS12: 18 | BT12: 12 | BU12: 32 | BV12: 26 | BW12: 37 | BX12: 31 | BY12: 36 | BZ12: 30
C14: Initialer, Avvik, Komm. | E14: Avvik | F14: s30 | G14: RT | I14: Avvik | J14: s30 | K14: RT | M14: Avvik | N14: s30 | O14: RT | Q14: Avvik | R14: s30 | S14: RT | U14: Avvik | V14: s30 | W14: RT | Y14: Avvik | Z14: s30 | AA14: RT | AC14: Avvik | AD14: s30 | AE14: RT | AG14: Avvik | AH14: s30 | AI14: RT | AK14: Avvik | AL14: s30 | AM14: RT | BI14: 29 | BJ14: 23 | BK14: 29 | BL14: 23 | BM14: 30 | BN14: 24 | BO14: 25 | BP14: 19 | BQ14: 27 | BR14: 21 | BS14: 18 | BT14: 12 | BU14: 32 | BV14: 26 | BW14: 37 | BX14: 31 | BY14: 36 | BZ14: 30
A15: 2019-09-25 | B15: 1 | D15: 26 | E15: =IF(D15=0,"",((D15-$D$7)/$D$7)) -> 0.01960784314 | F15: =IF(E15="","",(IF((ABS(E15)>($D$9*3)),"AV",IF((ABS(E15)>($D$9*2)),"NB","")))) ->  | H15: 26 | I15: =(H15-$H$7)/$H$7 -> 0.01960784314 | J15: =IF((ABS(I15)>($H$9*3)),"AV",IF((ABS(I15)>($H$9*2)),"NB","")) ->  | L15: 28 | M15: =(L15-$L$7)/$L$7 -> 0.009009009009 | N15: =IF((ABS(M15)>($L$9*3)),"AV",IF((ABS(M15)>($L$9*2)),"NB","")) ->  | P15: 22 | Q15: =(P15-$P$7)/$P$7 -> 0.01149425287 | R15: =IF((ABS(Q15)>($P$9*3)),"AV",IF((ABS(Q15)>($P$9*2)),"NB","")) ->  | T15: 24 | U15: =(T15-$T$7)/$T$7 -> 0 | V15: =IF((ABS(U15)>($T$9*3)),"AV",IF((ABS(U15)>($T$9*2)),"NB","")) ->  | X15: 14 | Y15: =(X15-$X$7)/$X$7 -> 0.01818181818 | Z15: =IF((ABS(Y15)>($X$9*3)),"AV",IF((ABS(Y15)>($X$9*2)),"NB","")) ->  | AB15: 29 | AC15: =(AB15-$AB$7)/$AB$7 -> 0.02654867257 | AD15: =IF((ABS(AC15)>($AB$9*3)),"AV",IF((ABS(AC15)>($AB$9*2)),"NB","")) ->  | AF15: 32 | AG15: =(AF15-$AF$7)/$AF$7 -> 0 | AH15: =IF((ABS(AG15)>($AF$9*3)),"AV",IF((ABS(AG15)>($AF$9*2)),"NB","")) ->  | AJ15: 32 | AK15: =(AJ15-$AJ$7)/$AJ$7 -> 0.024 | AL15: =IF((ABS(AK15)>($AJ$9*3)),"AV",IF((ABS(AK15)>($AJ$9*2)),"NB","")) ->  | BI15: 29 | BJ15: 23 | BK15: 29 | BL15: 23 | BM15: 30 | BN15: 24 | BO15: 25 | BP15: 19 | BQ15: 27 | BR15: 21 | BS15: 18 | BT15: 12 | BU15: 32 | BV15: 26 | BW15: 37 | BX15: 31 | BY15: 36 | BZ15: 30
A16: 2019-09-18 | B16: =B15+1 -> 2 | D16: 26 | E16: =IF(D16=0,"",((D16-$D$7)/$D$7)) -> 0.01960784314 | F16: =IF(E16="","",(IF((ABS(E16)>($D$9*3)),"AV",IF((ABS(E16)>($D$9*2)),"NB","")))) ->  | H16: 26 | I16: =(H16-$H$7)/$H$7 -> 0.01960784314 | J16: =IF((ABS(I16)>($H$9*3)),"AV",IF((ABS(I16)>($H$9*2)),"NB","")) ->  | L16: 28 | M16: =(L16-$L$7)/$L$7 -> 0.009009009009 | N16: =IF((ABS(M16)>($L$9*3)),"AV",IF((ABS(M16)>($L$9*2)),"NB","")) ->  | P16: 22 | Q16: =(P16-$P$7)/$P$7 -> 0.01149425287 | R16: =IF((ABS(Q16)>($P$9*3)),"AV",IF((ABS(Q16)>($P$9*2)),"NB","")) ->  | T16: 24 | U16: =(T16-$T$7)/$T$7 -> 0 | V16: =IF((ABS(U16)>($T$9*3)),"AV",IF((ABS(U16)>($T$9*2)),"NB","")) ->  | X16: 14 | Y16: =(X16-$X$7)/$X$7 -> 0.01818181818 | Z16: =IF((ABS(Y16)>($X$9*3)),"AV",IF((ABS(Y16)>($X$9*2)),"NB","")) ->  | AB16: 28 | AC16: =(AB16-$AB$7)/$AB$7 -> -0.008849557522 | AD16: =IF((ABS(AC16)>($AB$9*3)),"AV",IF((ABS(AC16)>($AB$9*2)),"NB","")) ->  | AF16: 32 | AG16: =(AF16-$AF$7)/$AF$7 -> 0 | AH16: =IF((ABS(AG16)>($AF$9*3)),"AV",IF((ABS(AG16)>($AF$9*2)),"NB","")) ->  | AJ16: 31 | AK16: =(AJ16-$AJ$7)/$AJ$7 -> -0.008 | AL16: =IF((ABS(AK16)>($AJ$9*3)),"AV",IF((ABS(AK16)>($AJ$9*2)),"NB","")) ->  | BI16: =F$8 -> 29 | BJ16: =F$9 -> 23 | BK16: =J$8 -> 29 | BL16: =J$9 -> 23 | BM16: =N$8 -> 30 | BN16: =N$9 -> 24 | BO16: =R$8 -> 25 | BP16: =R$9 -> 19 | BQ16: =V$8 -> 27 | BR16: =V$9 -> 21 | BS16: =Z$8 -> 18 | BT16: =Z$9 -> 12 | BU16: =AD$8 -> 32 | BV16: =AD$9 -> 26 | BW16: =AH$8 -> 37 | BX16: =AH$9 -> 31 | BY16: =AL$8 -> 36 | BZ16: =AL$9 -> 30
A17: 2019-09-11 | B17: 3 | D17: 25 | E17: =IF(D17=0,"",((D17-$D$7)/$D$7)) -> -0.01960784314 | F17: =IF(E17="","",(IF((ABS(E17)>($D$9*3)),"AV",IF((ABS(E17)>($D$9*2)),"NB","")))) ->  | H17: 25 | I17: =(H17-$H$7)/$H$7 -> -0.01960784314 | J17: =IF((ABS(I17)>($H$9*3)),"AV",IF((ABS(I17)>($H$9*2)),"NB","")) ->  | L17: 28 | M17: =(L17-$L$7)/$L$7 -> 0.009009009009 | N17: =IF((ABS(M17)>($L$9*3)),"AV",IF((ABS(M17)>($L$9*2)),"NB","")) ->  | P17: 22 | Q17: =(P17-$P$7)/$P$7 -> 0.01149425287 | R17: =IF((ABS(Q17)>($P$9*3)),"AV",IF((ABS(Q17)>($P$9*2)),"NB","")) ->  | T17: 24 | U17: =(T17-$T$7)/$T$7 -> 0 | V17: =IF((ABS(U17)>($T$9*3)),"AV",IF((ABS(U17)>($T$9*2)),"NB","")) ->  | X17: 14 | Y17: =(X17-$X$7)/$X$7 -> 0.01818181818 | Z17: =IF((ABS(Y17)>($X$9*3)),"AV",IF((ABS(Y17)>($X$9*2)),"NB","")) ->  | AB17: 28 | AC17: =(AB17-$AB$7)/$AB$7 -> -0.008849557522 | AD17: =IF((ABS(AC17)>($AB$9*3)),"AV",IF((ABS(AC17)>($AB$9*2)),"NB","")) ->  | AF17: 32 | AG17: =(AF17-$AF$7)/$AF$7 -> 0 | AH17: =IF((ABS(AG17)>($AF$9*3)),"AV",IF((ABS(AG17)>($AF$9*2)),"NB","")) ->  | AJ17: 31 | AK17: =(AJ17-$AJ$7)/$AJ$7 -> -0.008 | AL17: =IF((ABS(AK17)>($AJ$9*3)),"AV",IF((ABS(AK17)>($AJ$9*2)),"NB","")) ->  | BI17: 29 | BJ17: 23 | BK17: 29 | BL17: 23 | BM17: 30 | BN17: 24 | BO17: 25 | BP17: 19 | BQ17: 27 | BR17: 21 | BS17: 18 | BT17: 12 | BU17: 32 | BV17: 26 | BW17: 37 | BX17: 31 | BY17: 36 | BZ17: 30
A18: 2019-09-04 | B18: 4 | D18: 25 | E18: =IF(D18=0,"",((D18-$D$7)/$D$7)) -> -0.01960784314 | F18: =IF(E18="","",(IF((ABS(E18)>($D$9*3)),"AV",IF((ABS(E18)>($D$9*2)),"NB","")))) ->  | H18: 25 | I18: =(H18-$H$7)/$H$7 -> -0.01960784314 | J18: =IF((ABS(I18)>($H$9*3)),"AV",IF((ABS(I18)>($H$9*2)),"NB","")) ->  | L18: 27 | M18: =(L18-$L$7)/$L$7 -> -0.02702702703 | N18: =IF((ABS(M18)>($L$9*3)),"AV",IF((ABS(M18)>($L$9*2)),"NB","")) ->  | P18: 21 | Q18: =(P18-$P$7)/$P$7 -> -0.03448275862 | R18: =IF((ABS(Q18)>($P$9*3)),"AV",IF((ABS(Q18)>($P$9*2)),"NB","")) ->  | T18: 24 | U18: =(T18-$T$7)/$T$7 -> 0 | V18: =IF((ABS(U18)>($T$9*3)),"AV",IF((ABS(U18)>($T$9*2)),"NB","")) ->  | X18: 13 | Y18: =(X18-$X$7)/$X$7 -> -0.05454545455 | Z18: =IF((ABS(Y18)>($X$9*3)),"AV",IF((ABS(Y18)>($X$9*2)),"NB","")) ->  | AB18: 28 | AC18: =(AB18-$AB$7)/$AB$7 -> -0.008849557522 | AD18: =IF((ABS(AC18)>($AB$9*3)),"AV",IF((ABS(AC18)>($AB$9*2)),"NB","")) ->  | AF18: 32 | AG18: =(AF18-$AF$7)/$AF$7 -> 0 | AH18: =IF((ABS(AG18)>($AF$9*3)),"AV",IF((ABS(AG18)>($AF$9*2)),"NB","")) ->  | AJ18: 31 | AK18: =(AJ18-$AJ$7)/$AJ$7 -> -0.008 | AL18: =IF((ABS(AK18)>($AJ$9*3)),"AV",IF((ABS(AK18)>($AJ$9*2)),"NB","")) ->  | BI18: =F$8 -> 29 | BJ18: =F$9 -> 23 | BK18: =J$8 -> 29 | BL18: =J$9 -> 23 | BM18: =N$8 -> 30 | BN18: =N$9 -> 24 | BO18: =R$8 -> 25 | BP18: =R$9 -> 19 | BQ18: =V$8 -> 27 | BR18: =V$9 -> 21 | BS18: =Z$8 -> 18 | BT18: =Z$9 -> 12 | BU18: =AD$8 -> 32 | BV18: =AD$9 -> 26 | BW18: =AH$8 -> 37 | BX18: =AH$9 -> 31 | BY18: =AL$8 -> 36 | BZ18: =AL$9 -> 30
BI19: 29 | BJ19: 23 | BK19: 29 | BL19: 23 | BM19: 30 | BN19: 24 | BO19: 25 | BP19: 19 | BQ19: 27 | BR19: 21 | BS19: 18 | BT19: 12 | BU19: 32 | BV19: 26 | BW19: 37 | BX19: 31 | BY19: 36 | BZ19: 30
BI20: =F$8 -> 29 | BJ20: =F$9 -> 23 | BK20: =J$8 -> 29 | BL20: =J$9 -> 23 | BM20: =N$8 -> 30 | BN20: =N$9 -> 24 | BO20: =R$8 -> 25 | BP20: =R$9 -> 19 | BQ20: =V$8 -> 27 | BR20: =V$9 -> 21 | BS20: =Z$8 -> 18 | BT20: =Z$9 -> 12 | BU20: =AD$8 -> 32 | BV20: =AD$9 -> 26 | BW20: =AH$8 -> 37 | BX20: =AH$9 -> 31 | BY20: =AL$8 -> 36 | BZ20: =AL$9 -> 30
BI21: 29 | BJ21: 23 | BK21: 29 | BL21: 23 | BM21: 30 | BN21: 24 | BO21: 25 | BP21: 19 | BQ21: 27 | BR21: 21 | BS21: 18 | BT21: 12 | BU21: 32 | BV21: 26 | BW21: 37 | BX21: 31 | BY21: 36 | BZ21: 30
BI22: =F$8 -> 29 | BJ22: =F$9 -> 23 | BK22: =J$8 -> 29 | BL22: =J$9 -> 23 | BM22: =N$8 -> 30 | BN22: =N$9 -> 24 | BO22: =R$8 -> 25 | BP22: =R$9 -> 19 | BQ22: =V$8 -> 27 | BR22: =V$9 -> 21 | BS22: =Z$8 -> 18 | BT22: =Z$9 -> 12 | BU22: =AD$8 -> 32 | BV22: =AD$9 -> 26 | BW22: =AH$8 -> 37 | BX22: =AH$9 -> 31 | BY22: =AL$8 -> 36 | BZ22: =AL$9 -> 30
BI23: 29 | BJ23: 23 | BK23: 29 | BL23: 23 | BM23: 30 | BN23: 24 | BO23: 25 | BP23: 19 | BQ23: 27 | BR23: 21 | BS23: 18 | BT23: 12 | BU23: 32 | BV23: 26 | BW23: 37 | BX23: 31 | BY23: 36 | BZ23: 30
BI24: =F$8 -> 29 | BJ24: =F$9 -> 23 | BK24: =J$8 -> 29 | BL24: =J$9 -> 23 | BM24: =N$8 -> 30 | BN24: =N$9 -> 24 | BO24: =R$8 -> 25 | BP24: =R$9 -> 19 | BQ24: =V$8 -> 27 | BR24: =V$9 -> 21 | BS24: =Z$8 -> 18 | BT24: =Z$9 -> 12 | BU24: =AD$8 -> 32 | BV24: =AD$9 -> 26 | BW24: =AH$8 -> 37 | BX24: =AH$9 -> 31 | BY24: =AL$8 -> 36 | BZ24: =AL$9 -> 30
BI25: 29 | BJ25: 23 | BK25: 29 | BL25: 23 | BM25: 30 | BN25: 24 | BO25: 25 | BP25: 19 | BQ25: 27 | BR25: 21 | BS25: 18 | BT25: 12 | BU25: 32 | BV25: 26 | BW25: 37 | BX25: 31 | BY25: 36 | BZ25: 30
BI26: =F$8 -> 29 | BJ26: =F$9 -> 23 | BK26: =J$8 -> 29 | BL26: =J$9 -> 23 | BM26: =N$8 -> 30 | BN26: =N$9 -> 24 | BO26: =R$8 -> 25 | BP26: =R$9 -> 19 | BQ26: =V$8 -> 27 | BR26: =V$9 -> 21 | BS26: =Z$8 -> 18 | BT26: =Z$9 -> 12 | BU26: =AD$8 -> 32 | BV26: =AD$9 -> 26 | BW26: =AH$8 -> 37 | BX26: =AH$9 -> 31 | BY26: =AL$8 -> 36 | BZ26: =AL$9 -> 30
BI27: 29 | BJ27: 23 | BK27: 29 | BL27: 23 | BM27: 30 | BN27: 24 | BO27: 25 | BP27: 19 | BQ27: 27 | BR27: 21 | BS27: 18 | BT27: 12 | BU27: 32 | BV27: 26 | BW27: 37 | BX27: 31 | BY27: 36 | BZ27: 30
BI28: =F$8 -> 29 | BJ28: =F$9 -> 23 | BK28: =J$8 -> 29 | BL28: =J$9 -> 23 | BM28: =N$8 -> 30 | BN28: =N$9 -> 24 | BO28: =R$8 -> 25 | BP28: =R$9 -> 19 | BQ28: =V$8 -> 27 | BR28: =V$9 -> 21 | BS28: =Z$8 -> 18 | BT28: =Z$9 -> 12 | BU28: =AD$8 -> 32 | BV28: =AD$9 -> 26 | BW28: =AH$8 -> 37 | BX28: =AH$9 -> 31 | BY28: =AL$8 -> 36 | BZ28: =AL$9 -> 30
BI29: 29 | BJ29: 23 | BK29: 29 | BL29: 23 | BM29: 30 | BN29: 24 | BO29: 25 | BP29: 19 | BQ29: 27 | BR29: 21 | BS29: 18 | BT29: 12 | BU29: 32 | BV29: 26 | BW29: 37 | BX29: 31 | BY29: 36 | BZ29: 30
BI30: =F$8 -> 29 | BJ30: =F$9 -> 23 | BK30: =J$8 -> 29 | BL30: =J$9 -> 23 | BM30: =N$8 -> 30 | BN30: =N$9 -> 24 | BO30: =R$8 -> 25 | BP30: =R$9 -> 19 | BQ30: =V$8 -> 27 | BR30: =V$9 -> 21 | BS30: =Z$8 -> 18 | BT30: =Z$9 -> 12 | BU30: =AD$8 -> 32 | BV30: =AD$9 -> 26 | BW30: =AH$8 -> 37 | BX30: =AH$9 -> 31 | BY30: =AL$8 -> 36 | BZ30: =AL$9 -> 30
BI31: 29 | BJ31: 23 | BK31: 29 | BL31: 23 | BM31: 30 | BN31: 24 | BO31: 25 | BP31: 19 | BQ31: 27 | BR31: 21 | BS31: 18 | BT31: 12 | BU31: 32 | BV31: 26 | BW31: 37 | BX31: 31 | BY31: 36 | BZ31: 30
BI32: =F$8 -> 29 | BJ32: =F$9 -> 23 | BK32: =J$8 -> 29 | BL32: =J$9 -> 23 | BM32: =N$8 -> 30 | BN32: =N$9 -> 24 | BO32: =R$8 -> 25 | BP32: =R$9 -> 19 | BQ32: =V$8 -> 27 | BR32: =V$9 -> 21 | BS32: =Z$8 -> 18 | BT32: =Z$9 -> 12 | BU32: =AD$8 -> 32 | BV32: =AD$9 -> 26 | BW32: =AH$8 -> 37 | BX32: =AH$9 -> 31 | BY32: =AL$8 -> 36 | BZ32: =AL$9 -> 30
BI33: 29 | BJ33: 23 | BK33: 29 | BL33: 23 | BM33: 30 | BN33: 24 | BO33: 25 | BP33: 19 | BQ33: 27 | BR33: 21 | BS33: 18 | BT33: 12 | BU33: 32 | BV33: 26 | BW33: 37 | BX33: 31 | BY33: 36 | BZ33: 30
BI34: =F$8 -> 29 | BJ34: =F$9 -> 23 | BK34: =J$8 -> 29 | BL34: =J$9 -> 23 | BM34: =N$8 -> 30 | BN34: =N$9 -> 24 | BO34: =R$8 -> 25 | BP34: =R$9 -> 19 | BQ34: =V$8 -> 27 | BR34: =V$9 -> 21 | BS34: =Z$8 -> 18 | BT34: =Z$9 -> 12 | BU34: =AD$8 -> 32 | BV34: =AD$9 -> 26 | BW34: =AH$8 -> 37 | BX34: =AH$9 -> 31 | BY34: =AL$8 -> 36 | BZ34: =AL$9 -> 30
BI35: 29 | BJ35: 23 | BK35: 29 | BL35: 23 | BM35: 30 | BN35: 24 | BO35: 25 | BP35: 19 | BQ35: 27 | BR35: 21 | BS35: 18 | BT35: 12 | BU35: 32 | BV35: 26 | BW35: 37 | BX35: 31 | BY35: 36 | BZ35: 30
BI36: =F$8 -> 29 | BJ36: =F$9 -> 23 | BK36: =J$8 -> 29 | BL36: =J$9 -> 23 | BM36: =N$8 -> 30 | BN36: =N$9 -> 24 | BO36: =R$8 -> 25 | BP36: =R$9 -> 19 | BQ36: =V$8 -> 27 | BR36: =V$9 -> 21 | BS36: =Z$8 -> 18 | BT36: =Z$9 -> 12 | BU36: =AD$8 -> 32 | BV36: =AD$9 -> 26 | BW36: =AH$8 -> 37 | BX36: =AH$9 -> 31 | BY36: =AL$8 -> 36 | BZ36: =AL$9 -> 30
BI37: 29 | BJ37: 23 | BK37: 29 | BL37: 23 | BM37: 30 | BN37: 24 | BO37: 25 | BP37: 19 | BQ37: 27 | BR37: 21 | BS37: 18 | BT37: 12 | BU37: 32 | BV37: 26 | BW37: 37 | BX37: 31 | BY37: 36 | BZ37: 30
BI38: =F$8 -> 29 | BJ38: =F$9 -> 23 | BK38: =J$8 -> 29 | BL38: =J$9 -> 23 | BM38: =N$8 -> 30 | BN38: =N$9 -> 24 | BO38: =R$8 -> 25 | BP38: =R$9 -> 19 | BQ38: =V$8 -> 27 | BR38: =V$9 -> 21 | BS38: =Z$8 -> 18 | BT38: =Z$9 -> 12 | BU38: =AD$8 -> 32 | BV38: =AD$9 -> 26 | BW38: =AH$8 -> 37 | BX38: =AH$9 -> 31 | BY38: =AL$8 -> 36 | BZ38: =AL$9 -> 30
BI39: 29 | BJ39: 23 | BK39: 29 | BL39: 23 | BM39: 30 | BN39: 24 | BO39: 25 | BP39: 19 | BQ39: 27 | BR39: 21 | BS39: 18 | BT39: 12 | BU39: 32 | BV39: 26 | BW39: 37 | BX39: 31 | BY39: 36 | BZ39: 30
BI40: =F$8 -> 29 | BJ40: =F$9 -> 23 | BK40: =J$8 -> 29 | BL40: =J$9 -> 23 | BM40: =N$8 -> 30 | BN40: =N$9 -> 24 | BO40: =R$8 -> 25 | BP40: =R$9 -> 19 | BQ40: =V$8 -> 27 | BR40: =V$9 -> 21 | BS40: =Z$8 -> 18 | BT40: =Z$9 -> 12 | BU40: =AD$8 -> 32 | BV40: =AD$9 -> 26 | BW40: =AH$8 -> 37 | BX40: =AH$9 -> 31 | BY40: =AL$8 -> 36 | BZ40: =AL$9 -> 30
BI41: 29 | BJ41: 23 | BK41: 29 | BL41: 23 | BM41: 30 | BN41: 24 | BO41: 25 | BP41: 19 | BQ41: 27 | BR41: 21 | BS41: 18 | BT41: 12 | BU41: 32 | BV41: 26 | BW41: 37 | BX41: 31 | BY41: 36 | BZ41: 30
BI42: =F$8 -> 29 | BJ42: =F$9 -> 23 | BK42: =J$8 -> 29 | BL42: =J$9 -> 23 | BM42: =N$8 -> 30 | BN42: =N$9 -> 24 | BO42: =R$8 -> 25 | BP42: =R$9 -> 19 | BQ42: =V$8 -> 27 | BR42: =V$9 -> 21 | BS42: =Z$8 -> 18 | BT42: =Z$9 -> 12 | BU42: =AD$8 -> 32 | BV42: =AD$9 -> 26 | BW42: =AH$8 -> 37 | BX42: =AH$9 -> 31 | BY42: =AL$8 -> 36 | BZ42: =AL$9 -> 30
BI43: 29 | BJ43: 23 | BK43: 29 | BL43: 23 | BM43: 30 | BN43: 24 | BO43: 25 | BP43: 19 | BQ43: 27 | BR43: 21 | BS43: 18 | BT43: 12 | BU43: 32 | BV43: 26 | BW43: 37 | BX43: 31 | BY43: 36 | BZ43: 30
BI44: =F$8 -> 29 | BJ44: =F$9 -> 23 | BK44: =J$8 -> 29 | BL44: =J$9 -> 23 | BM44: =N$8 -> 30 | BN44: =N$9 -> 24 | BO44: =R$8 -> 25 | BP44: =R$9 -> 19 | BQ44: =V$8 -> 27 | BR44: =V$9 -> 21 | BS44: =Z$8 -> 18 | BT44: =Z$9 -> 12 | BU44: =AD$8 -> 32 | BV44: =AD$9 -> 26 | BW44: =AH$8 -> 37 | BX44: =AH$9 -> 31 | BY44: =AL$8 -> 36 | BZ44: =AL$9 -> 30

Sheet MRSA
A1: MRSA
A2: 2019-10-01 | D2: PA Jenum
A3: Registrér etter at måleverdiene er lagt inn
A5: Ukentlig | D5: S. aureus CCUG 67181 - NCTC 12493 | N5: FOX
A6: Dato | B6: Nr | D6: Cefoxitin 30 | E6: FOX | F6: Sonegrenser | G6: Target | N6: Øvre | O6: Nedre
A7: Snitt | B7: Siste 30 | D7: =AVERAGE(D$15:D$44) -> 18 | E7: +-2SD | F7: =IF(F8="","",IF(D7>(3+((F8+F9)/2)),"NB",IF(D7<(-3+((F8+F9)/2)),"NB","OK"))) -> OK | G7: 17
A8: SD | B8: Siste 30 | D8: =STDEV(D$15:D$44) -> 0.8164965809 | E8: =D7+(2*D8) -> 19.63299316 | F8: 20
A9: CV% | D9: =IF(D8=0,"",(D8/D7)) -> 0.04536092116 | E9: =D7-(2*D8) -> 16.36700684 | F9: 14
A12: Legg inn diameter i hele millimeter i fargede felt i Rad 13
C14: Initialer, Avvik, Komm. | E14: Avvik | F14: s30 | G14: RT
A15: 2019-09-25 | B15: 1 | D15: 18 | E15: =(D15-$D$7)/$D$7 -> 0 | F15: =IF((ABS(E15)>($D$9*3)),"AV",IF((ABS(E15)>($D$9*2)),"NB","")) ->  | N15: =$F$8 -> 20 | O15: =$F$9 -> 14
A16: 2019-09-18 | B16: =B15+1 -> 2 | D16: 17 | E16: =(D16-$D$7)/$D$7 -> -0.05555555556 | F16: =IF((ABS(E16)>($D$9*3)),"AV",IF((ABS(E16)>($D$9*2)),"NB","")) ->  | N16: 20 | O16: 14
A17: 2019-09-11 | B17: 3 | D17: 19 | E17: =(D17-$D$7)/$D$7 -> 0.05555555556 | F17: =IF((ABS(E17)>($D$9*3)),"AV",IF((ABS(E17)>($D$9*2)),"NB","")) ->  | N17: 20 | O17: 14
A18: 2019-09-04 | B18: 4 | D18: 18 | E18: =(D18-$D$7)/$D$7 -> 0 | F18: =IF((ABS(E18)>($D$9*3)),"AV",IF((ABS(E18)>($D$9*2)),"NB","")) ->  | N18: 20 | O18: 14
N19: 20 | O19: 14
N20: 20 | O20: 14
N21: 20 | O21: 14
N22: 20 | O22: 14
N23: 20 | O23: 14
N24: 20 | O24: 14
N25: 20 | O25: 14
N26: 20 | O26: 14
N27: 20 | O27: 14
N28: 20 | O28: 14
N29: 20 | O29: 14
N30: 20 | O30: 14
N31: 20 | O31: 14
N32: 20 | O32: 14
N33: 20 | O33: 14
N34: 20 | O34: 14
N35: 20 | O35: 14
N36: 20 | O36: 14
N37: 20 | O37: 14
N38: 20 | O38: 14
N39: 20 | O39: 14
N40: 20 | O40: 14
N41: 20 | O41: 14
N42: 20 | O42: 14

Sheet CAMP
A1: Campylobacter
A2: 2019-10-01 | D2: PA Jenum
A3: Registrér etter at måleverdiene er lagt inn
A5: Ukentlig | D5: Campylobacter jejuni ATCC 33560 / CCUG 11284 | AE5: =E6 -> E15 | AG5: =I6 -> CIP5 | AI5: =M6 -> TE30
A6: Dato | B6: Nr | D6: Erytromycin 15 | E6: E15 | F6: Sonegrenser | G6: Target | H6: Ciprofloxacin | I6: CIP5 | J6: Sonegrenser | K6: Target | L6: Tetracyclin | M6: TE30 | N6: Sonegrenser | O6: Target | AE6: Øvre | AF6: Nedre | AG6: Øvre | AH6: Nedre | AI6: Øvre | AJ6: Nedre
A7: Snitt | B7: Siste 30 | D7: =AVERAGE(D$15:D$44) -> 29.5 | E7: +-2SD | F7: =IF(F8="","",IF(D7>(3+((F8+F9)/2)),"NB",IF(D7<(-3+((F8+F9)/2)),"NB","OK"))) -> OK | G7: 31 | H7: =AVERAGE(H$15:H$44) -> 38.75 | I7: +-2SD | J7: =IF(J8="","",IF(H7>(3+((J8+J9)/2)),"NB",IF(H7<(-3+((J8+J9)/2)),"NB","OK"))) -> OK | K7: 38 | L7: =AVERAGE(L$15:L$44) -> 33.75 | M7: +-2SD | N7: =IF(N8="","",IF(L7>(3+((N8+N9)/2)),"NB",IF(L7<(-3+((N8+N9)/2)),"NB","OK"))) -> OK | O7: 34
A8: SD | B8: Siste 30 | D8: =STDEV(D$15:D$44) -> 0.5773502692 | E8: =D7+(2*D8) -> 30.65470054 | F8: 35 | H8: =STDEV(H$15:H$44) -> 0.9574271078 | I8: =H7+(2*H8) -> 40.66485422 | J8: 42 | L8: =STDEV(L$15:L$44) -> 0.5 | M8: =L7+(2*L8) -> 34.75 | N8: 38
A9: CV% | D9: =D8/D7 -> 0.01957119557 | E9: =D7-(2*D8) -> 28.34529946 | F9: 27 | H9: =H8/H7 -> 0.02470779633 | I9: =H7-(2*H8) -> 36.83514578 | J9: 34 | L9: =L8/L7 -> 0.01481481481 | M9: =L7-(2*L8) -> 32.75 | N9: 30
A12: Legg inn diameter i hele millimeter i fargede felt i Rad 13
C14: Initialer, Avvik, Komm. | E14: Avvik | F14: s30 | G14: RT | I14: Avvik | J14: s30 | K14: RT | M14: Avvik | N14: s30 | O14: RT
A15: 2019-09-12 | B15: 1 | D15: 29 | E15: =(D15-$D$7)/$D$7 -> -0.01694915254 | F15: =IF((ABS(E15)>($D$9*3)),"AV",IF((ABS(E15)>($D$9*2)),"NB","")) ->  | H15: 38 | I15: =(H15-$H$7)/$H$7 -> -0.01935483871 | J15: =IF((ABS(I15)>($H$9*3)),"AV",IF((ABS(I15)>($H$9*2)),"NB","")) ->  | L15: 33 | M15: =(L15-$L$7)/$L$7 -> -0.02222222222 | N15: =IF((ABS(M15)>($L$9*3)),"AV",IF((ABS(M15)>($L$9*2)),"NB","")) ->  | AE15: =F$8 -> 35 | AF15: =F$9 -> 27 | AG15: =J$8 -> 42 | AH15: =J$9 -> 34 | AI15: =N$8 -> 38 | AJ15: =N$9 -> 30
A16: 2019-07-30 | B16: =B15+1 -> 2 | D16: 30 | E16: =(D16-$D$7)/$D$7 -> 0.01694915254 | F16: =IF((ABS(E16)>($D$9*3)),"AV",IF((ABS(E16)>($D$9*2)),"NB","")) ->  | H16: 39 | I16: =(H16-$H$7)/$H$7 -> 0.006451612903 | J16: =IF((ABS(I16)>($H$9*3)),"AV",IF((ABS(I16)>($H$9*2)),"NB","")) ->  | L16: 34 | M16: =(L16-$L$7)/$L$7 -> 0.007407407407 | N16: =IF((ABS(M16)>($L$9*3)),"AV",IF((ABS(M16)>($L$9*2)),"NB","")) ->  | AE16: =F$8 -> 35 | AF16: =F$9 -> 27 | AG16: =J$8 -> 42 | AH16: =J$9 -> 34 | AI16: =N$8 -> 38 | AJ16: =N$9 -> 30
A17: 2019-07-26 | B17: 3 | D17: 30 | E17: =(D17-$D$7)/$D$7 -> 0.01694915254 | F17: =IF((ABS(E17)>($D$9*3)),"AV",IF((ABS(E17)>($D$9*2)),"NB","")) ->  | H17: 38 | I17: =(H17-$H$7)/$H$7 -> -0.01935483871 | J17: =IF((ABS(I17)>($H$9*3)),"AV",IF((ABS(I17)>($H$9*2)),"NB","")) ->  | L17: 34 | M17: =(L17-$L$7)/$L$7 -> 0.007407407407 | N17: =IF((ABS(M17)>($L$9*3)),"AV",IF((ABS(M17)>($L$9*2)),"NB","")) ->  | AE17: =F$8 -> 35 | AF17: =F$9 -> 27 | AG17: =J$8 -> 42 | AH17: =J$9 -> 34 | AI17: =N$8 -> 38 | AJ17: =N$9 -> 30
A18: 2019-07-04 | B18: 4 | D18: 29 | E18: =(D18-$D$7)/$D$7 -> -0.01694915254 | F18: =IF((ABS(E18)>($D$9*3)),"AV",IF((ABS(E18)>($D$9*2)),"NB","")) ->  | H18: 40 | I18: =(H18-$H$7)/$H$7 -> 0.03225806452 | J18: =IF((ABS(I18)>($H$9*3)),"AV",IF((ABS(I18)>($H$9*2)),"NB","")) ->  | L18: 34 | M18: =(L18-$L$7)/$L$7 -> 0.007407407407 | N18: =IF((ABS(M18)>($L$9*3)),"AV",IF((ABS(M18)>($L$9*2)),"NB","")) ->  | AE18: =F$8 -> 35 | AF18: =F$9 -> 27 | AG18: =J$8 -> 42 | AH18: =J$9 -> 34 | AI18: =N$8 -> 38 | AJ18: =N$9 -> 30
AE19: =F$8 -> 35 | AF19: =F$9 -> 27 | AG19: =J$8 -> 42 | AH19: =J$9 -> 34 | AI19: =N$8 -> 38 | AJ19: =N$9 -> 30
AE20: =F$8 -> 35 | AF20: =F$9 -> 27 | AG20: =J$8 -> 42 | AH20: =J$9 -> 34 | AI20: =N$8 -> 38 | AJ20: =N$9 -> 30
AE21: =F$8 -> 35 | AF21: =F$9 -> 27 | AG21: =J$8 -> 42 | AH21: =J$9 -> 34 | AI21: =N$8 -> 38 | AJ21: =N$9 -> 30
AE22: =F$8 -> 35 | AF22: =F$9 -> 27 | AG22: =J$8 -> 42 | AH22: =J$9 -> 34 | AI22: =N$8 -> 38 | AJ22: =N$9 -> 30
AE23: =F$8 -> 35 | AF23: =F$9 -> 27 | AG23: =J$8 -> 42 | AH23: =J$9 -> 34 | AI23: =N$8 -> 38 | AJ23: =N$9 -> 30
AE24: =F$8 -> 35 | AF24: =F$9 -> 27 | AG24: =J$8 -> 42 | AH24: =J$9 -> 34 | AI24: =N$8 -> 38 | AJ24: =N$9 -> 30
AE25: =F$8 -> 35 | AF25: =F$9 -> 27 | AG25: =J$8 -> 42 | AH25: =J$9 -> 34 | AI25: =N$8 -> 38 | AJ25: =N$9 -> 30
AE26: =F$8 -> 35 | AF26: =F$9 -> 27 | AG26: =J$8 -> 42 | AH26: =J$9 -> 34 | AI26: =N$8 -> 38 | AJ26: =N$9 -> 30
AE27: =F$8 -> 35 | AF27: =F$9 -> 27 | AG27: =J$8 -> 42 | AH27: =J$9 -> 34 | AI27: =N$8 -> 38 | AJ27: =N$9 -> 30
AE28: =F$8 -> 35 | AF28: =F$9 -> 27 | AG28: =J$8 -> 42 | AH28: =J$9 -> 34 | AI28: =N$8 -> 38 | AJ28: =N$9 -> 30
AE29: =F$8 -> 35 | AF29: =F$9 -> 27 | AG29: =J$8 -> 42 | AH29: =J$9 -> 34 | AI29: =N$8 -> 38 | AJ29: =N$9 -> 30
AE30: =F$8 -> 35 | AF30: =F$9 -> 27 | AG30: =J$8 -> 42 | AH30: =J$9 -> 34 | AI30: =N$8 -> 38 | AJ30: =N$9 -> 30
AE31: 35 | AF31: 27 | AG31: 42 | AH31: 34 | AI31: 38 | AJ31: 30
AE32: =F$8 -> 35 | AF32: =F$9 -> 27 | AG32: =J$8 -> 42 | AH32: =J$9 -> 34 | AI32: =N$8 -> 38 | AJ32: =N$9 -> 30
AE33: =F$8 -> 35 | AF33: =F$9 -> 27 | AG33: =J$8 -> 42 | AH33: =J$9 -> 34 | AI33: =N$8 -> 38 | AJ33: =N$9 -> 30
AE34: 35 | AF34: 27 | AG34: 42 | AH34: 34 | AI34: 38 | AJ34: 30
AE35: 35 | AF35: 27 | AG35: 42 | AH35: 34 | AI35: 38 | AJ35: 30
AE36: 35 | AF36: 27 | AG36: 42 | AH36: 34 | AI36: 38 | AJ36: 30
AE37: 35 | AF37: 27 | AG37: 42 | AH37: 34 | AI37: 38 | AJ37: 30
AE38: 35 | AF38: 27 | AG38: 42 | AH38: 34 | AI38: 38 | AJ38: 30
AE39: 35 | AF39: 27 | AG39: 42 | AH39: 34 | AI39: 38 | AJ39: 30
AE40: 35 | AF40: 27 | AG40: 42 | AH40: 34 | AI40: 38 | AJ40: 30
AE41: 35 | AF41: 27 | AG41: 42 | AH41: 34 | AI41: 38 | AJ41: 30
AE42: 35 | AF42: 27 | AG42: 42 | AH42: 34 | AI42: 38 | AJ42: 30
AE43: 35 | AF43: 27 | AG43: 42 | AH43: 34 | AI43: 38 | AJ43: 30
AE44: 35 | AF44: 27 | AG44: 42 | AH44: 34 | AI44: 38 | AJ44: 30

Sheet Ark1

Sheet Ark2
